{"text_format":"1","workbook":"xlsx","n_sheets":1,"sheets":["Buildup Form"],"not_rendered":{"charts":0,"images":1,"macros":1,"external_links":0,"defined_names":3,"comments":0,"pivot_tables":0},"unopened":[],"bounds":{"document_bytes":16777216,"sheet_cells":100000,"rows_first":2000,"rows_last":500,"rows_between":2000,"halvings":0,"cell_chars":16384,"cell_head_chars":4096},"cells_cut":0,"cells_raw":0,"read":"whole","date_system":"1900"}

{"sheet":"Buildup Form","index":0,"n_rows":510,"n_cols":28,"rows_kept":510,"cut":false,"hidden":false,"merged":[[8,15,9,15],[10,1,10,2],[8,19,9,19],[8,20,9,20],[8,18,9,18],[8,17,9,17],[8,25,9,25],[8,24,9,24],[8,23,9,23],[8,22,9,22],[8,16,9,16],[500,1,500,2],[501,1,501,2],[8,21,9,21],[499,1,499,2],[494,1,494,2],[495,1,495,2],[496,1,496,2],[497,1,497,2],[498,1,498,2],[489,1,489,2],[490,1,490,2],[491,1,491,2],[492,1,492,2],[493,1,493,2],[484,1,484,2],[485,1,485,2],[486,1,486,2],[487,1,487,2],[488,1,488,2],[479,1,479,2],[480,1,480,2],[481,1,481,2],[482,1,482,2],[483,1,483,2],[474,1,474,2],[475,1,475,2],[476,1,476,2],[477,1,477,2],[478,1,478,2],[469,1,469,2],[470,1,470,2],[471,1,471,2],[472,1,472,2],[473,1,473,2],[464,1,464,2],[465,1,465,2],[466,1,466,2],[467,1,467,2],[468,1,468,2],[459,1,459,2],[460,1,460,2],[461,1,461,2],[462,1,462,2],[463,1,463,2],[454,1,454,2],[455,1,455,2],[456,1,456,2],[457,1,457,2],[458,1,458,2],[449,1,449,2],[450,1,450,2],[451,1,451,2],[452,1,452,2],[453,1,453,2],[444,1,444,2],[445,1,445,2],[446,1,446,2],[447,1,447,2],[448,1,448,2],[439,1,439,2],[440,1,440,2],[441,1,441,2],[442,1,442,2],[443,1,443,2],[434,1,434,2],[435,1,435,2],[436,1,436,2],[437,1,437,2],[438,1,438,2],[429,1,429,2],[430,1,430,2],[431,1,431,2],[432,1,432,2],[433,1,433,2],[424,1,424,2],[425,1,425,2],[426,1,426,2],[427,1,427,2],[428,1,428,2],[419,1,419,2],[420,1,420,2],[421,1,421,2],[422,1,422,2],[423,1,423,2],[414,1,414,2],[415,1,415,2],[416,1,416,2],[417,1,417,2],[418,1,418,2],[409,1,409,2],[410,1,410,2],[411,1,411,2],[412,1,412,2],[413,1,413,2],[404,1,404,2],[405,1,405,2],[406,1,406,2],[407,1,407,2],[408,1,408,2],[399,1,399,2],[400,1,400,2],[401,1,401,2],[402,1,402,2],[403,1,403,2],[394,1,394,2],[395,1,395,2],[396,1,396,2],[397,1,397,2],[398,1,398,2],[389,1,389,2],[390,1,390,2],[391,1,391,2],[392,1,392,2],[393,1,393,2],[384,1,384,2],[385,1,385,2],[386,1,386,2],[387,1,387,2],[388,1,388,2],[379,1,379,2],[380,1,380,2],[381,1,381,2],[382,1,382,2],[383,1,383,2],[374,1,374,2],[375,1,375,2],[376,1,376,2],[377,1,377,2],[378,1,378,2],[369,1,369,2],[370,1,370,2],[371,1,371,2],[372,1,372,2],[373,1,373,2],[364,1,364,2],[365,1,365,2],[366,1,366,2],[367,1,367,2],[368,1,368,2],[359,1,359,2],[360,1,360,2],[361,1,361,2],[362,1,362,2],[363,1,363,2],[354,1,354,2],[355,1,355,2],[356,1,356,2],[357,1,357,2],[358,1,358,2],[349,1,349,2],[350,1,350,2],[351,1,351,2],[352,1,352,2],[353,1,353,2],[344,1,344,2],[345,1,345,2],[346,1,346,2],[347,1,347,2],[348,1,348,2],[339,1,339,2],[340,1,340,2],[341,1,341,2],[342,1,342,2],[343,1,343,2],[334,1,334,2],[335,1,335,2],[336,1,336,2],[337,1,337,2],[338,1,338,2],[329,1,329,2],[330,1,330,2],[331,1,331,2],[332,1,332,2],[333,1,333,2],[324,1,324,2],[325,1,325,2],[326,1,326,2],[327,1,327,2],[328,1,328,2],[319,1,319,2],[320,1,320,2],[321,1,321,2],[322,1,322,2],[323,1,323,2],[314,1,314,2],[315,1,315,2],[316,1,316,2],[317,1,317,2],[318,1,318,2],[309,1,309,2],[310,1,310,2],[311,1,311,2],[312,1,312,2],[313,1,313,2],[304,1,304,2],[305,1,305,2],[306,1,306,2],[307,1,307,2],[308,1,308,2],[299,1,299,2],[300,1,300,2],[301,1,301,2],[302,1,302,2],[303,1,303,2],[294,1,294,2],[295,1,295,2],[296,1,296,2],[297,1,297,2],[298,1,298,2],[289,1,289,2],[290,1,290,2],[291,1,291,2],[292,1,292,2],[293,1,293,2],[284,1,284,2],[285,1,285,2],[286,1,286,2],[287,1,287,2],[288,1,288,2],[279,1,279,2],[280,1,280,2],[281,1,281,2],[282,1,282,2],[283,1,283,2],[274,1,274,2],[275,1,275,2],[276,1,276,2],[277,1,277,2],[278,1,278,2],[269,1,269,2],[270,1,270,2],[271,1,271,2],[272,1,272,2],[273,1,273,2],[264,1,264,2],[265,1,265,2],[266,1,266,2],[267,1,267,2],[268,1,268,2],[259,1,259,2],[260,1,260,2],[261,1,261,2],[262,1,262,2],[263,1,263,2],[254,1,254,2],[255,1,255,2],[256,1,256,2],[257,1,257,2],[258,1,258,2],[249,1,249,2],[250,1,250,2],[251,1,251,2],[252,1,252,2],[253,1,253,2],[244,1,244,2],[245,1,245,2],[246,1,246,2],[247,1,247,2],[248,1,248,2],[239,1,239,2],[240,1,240,2],[241,1,241,2],[242,1,242,2],[243,1,243,2],[234,1,234,2],[235,1,235,2],[236,1,236,2],[237,1,237,2],[238,1,238,2],[229,1,229,2],[230,1,230,2],[231,1,231,2],[232,1,232,2],[233,1,233,2],[224,1,224,2],[225,1,225,2],[226,1,226,2],[227,1,227,2],[228,1,228,2],[219,1,219,2],[220,1,220,2],[221,1,221,2],[222,1,222,2],[223,1,223,2],[214,1,214,2],[215,1,215,2],[216,1,216,2],[217,1,217,2],[218,1,218,2],[209,1,209,2],[210,1,210,2],[211,1,211,2],[212,1,212,2],[213,1,213,2],[204,1,204,2],[205,1,205,2],[206,1,206,2],[207,1,207,2],[208,1,208,2],[199,1,199,2],[200,1,200,2],[201,1,201,2],[202,1,202,2],[203,1,203,2],[194,1,194,2],[195,1,195,2],[196,1,196,2],[197,1,197,2],[198,1,198,2],[189,1,189,2],[190,1,190,2],[191,1,191,2],[192,1,192,2],[193,1,193,2],[184,1,184,2],[185,1,185,2],[186,1,186,2],[187,1,187,2],[188,1,188,2],[179,1,179,2],[180,1,180,2],[181,1,181,2],[182,1,182,2],[183,1,183,2],[174,1,174,2],[175,1,175,2],[176,1,176,2],[177,1,177,2],[178,1,178,2],[169,1,169,2],[170,1,170,2],[171,1,171,2],[172,1,172,2],[173,1,173,2],[164,1,164,2],[165,1,165,2],[166,1,166,2],[167,1,167,2],[168,1,168,2],[159,1,159,2],[160,1,160,2],[161,1,161,2],[162,1,162,2],[163,1,163,2],[154,1,154,2],[155,1,155,2],[156,1,156,2],[157,1,157,2],[158,1,158,2],[149,1,149,2],[150,1,150,2],[151,1,151,2],[152,1,152,2],[153,1,153,2],[144,1,144,2],[145,1,145,2],[146,1,146,2],[147,1,147,2],[148,1,148,2],[139,1,139,2],[140,1,140,2],[141,1,141,2],[142,1,142,2],[143,1,143,2],[134,1,134,2],[135,1,135,2],[136,1,136,2],[137,1,137,2],[138,1,138,2],[129,1,129,2],[130,1,130,2],[131,1,131,2],[132,1,132,2],[133,1,133,2],[124,1,124,2],[125,1,125,2],[126,1,126,2],[127,1,127,2],[128,1,128,2],[119,1,119,2],[120,1,120,2],[121,1,121,2],[122,1,122,2],[123,1,123,2],[114,1,114,2],[115,1,115,2],[116,1,116,2],[117,1,117,2],[118,1,118,2],[109,1,109,2],[110,1,110,2],[111,1,111,2],[112,1,112,2],[113,1,113,2],[104,1,104,2],[105,1,105,2],[106,1,106,2],[107,1,107,2],[108,1,108,2],[99,1,99,2],[100,1,100,2],[101,1,101,2],[102,1,102,2],[103,1,103,2],[94,1,94,2],[95,1,95,2],[96,1,96,2],[97,1,97,2],[98,1,98,2],[89,1,89,2],[90,1,90,2],[91,1,91,2],[92,1,92,2],[93,1,93,2],[84,1,84,2],[85,1,85,2],[86,1,86,2],[87,1,87,2],[88,1,88,2],[79,1,79,2],[80,1,80,2],[81,1,81,2],[82,1,82,2],[83,1,83,2],[74,1,74,2],[75,1,75,2],[76,1,76,2],[77,1,77,2],[78,1,78,2],[69,1,69,2],[70,1,70,2],[71,1,71,2],[72,1,72,2],[73,1,73,2],[64,1,64,2],[65,1,65,2],[66,1,66,2],[67,1,67,2],[68,1,68,2],[59,1,59,2],[60,1,60,2],[61,1,61,2],[62,1,62,2],[63,1,63,2],[54,1,54,2],[55,1,55,2],[56,1,56,2],[57,1,57,2],[58,1,58,2],[49,1,49,2],[50,1,50,2],[51,1,51,2],[52,1,52,2],[53,1,53,2],[44,1,44,2],[45,1,45,2],[46,1,46,2],[47,1,47,2],[48,1,48,2],[39,1,39,2],[40,1,40,2],[41,1,41,2],[42,1,42,2],[43,1,43,2],[34,1,34,2],[35,1,35,2],[36,1,36,2],[37,1,37,2],[38,1,38,2],[29,1,29,2],[30,1,30,2],[31,1,31,2],[32,1,32,2],[33,1,33,2],[24,1,24,2],[25,1,25,2],[26,1,26,2],[27,1,27,2],[28,1,28,2],[8,4,9,4],[20,1,20,2],[21,1,21,2],[22,1,22,2],[23,1,23,2],[19,1,19,2],[8,3,9,3],[18,1,18,2],[13,1,13,2],[14,1,14,2],[15,1,15,2],[16,1,16,2],[17,1,17,2],[1,0,1,1],[4,0,4,1],[3,0,3,1],[2,0,2,1],[11,1,11,2],[12,1,12,2],[6,0,6,1],[5,0,5,1],[8,0,9,0],[8,1,9,2]]}
[null,null,null,null,null,{"$f":"IF(SUM(F11:F502)>0, TRUE,FALSE)","v":false},{"$f":"IF(SUM(G11:G502)>0, TRUE,FALSE)","v":false},false,false,false,false,false,false,false,false,{"$f":"IF(COUNTIF(Q1:Z1,TRUE)>0,TRUE,FALSE)","v":false},{"$f":"IF((SUMPRODUCT((Q9:Q510<>\"\")+0))>0,TRUE,FALSE)","v":false},{"$f":"IF((SUMPRODUCT((R9:R510<>\"\")+0))>0,TRUE,FALSE)","v":false},false,false,false,false,{"$f":"IF((SUMPRODUCT((W9:W510<>\"\")+0))>0,TRUE,FALSE)","v":false},{"$f":"IF((SUMPRODUCT((X9:X510<>\"\")+0))>0,TRUE,FALSE)","v":false},{"$f":"IF((SUMPRODUCT((Y9:Y510<>\"\")+0))>0,TRUE,FALSE)","v":false},{"$f":"IF((SUMPRODUCT((Z9:Z510<>\"\")+0))>0,TRUE,FALSE)","v":false}]
["Facility Name:",null,null,null,"Retainage:"]
["9-Digit Facility ID #:",null,null,null,"FDEP Cost Share:"]
["Region:",null,null,null,"SubPhase(s):"]
["Site Manager Name:"]
["Site Manager Phone:"]
["Site Manager Email:"]
[]
["PAY ITEM","DESCRIPTION",null,"UNIT OF MEASURE","TOTAL QUANTITIES",{"$f":"\"[\" & IF(SUM(F11:F502)<>0, \" X \", \"    \") & \"]\"","v":"[    ]"},"[    ]","[    ]","[    ]","[    ]","[    ]","[    ]","[    ]","[    ]","[    ]",null,null,null,null,null,null,null,null,null,null,null,null,true]
[null,null,null,null,null,"TASK 1\nQUANT.","TASK 2\nQUANT.","TASK 3\nQUANT.","TASK 4\nQUANT.","TASK 5\nQUANT.","TASK 6\nQUANT.","TASK 7\nQUANT.","TASK 8\nQUANT.","TASK 9\nQUANT.","TASK 10\nQUANT.",null,null,null,null,null,null,null,null,null,null,null,null,true]
["1.","OFFICE ACTIVITIES",null,null,null,null,null,null,null,null,null,null,null,null,null,null,null,null,null,null,null,null,null,null,null,null,null,{"$f":"IF(COUNTIF(AB12:AB20,TRUE)>0,TRUE,FALSE)","v":false}]
["1-1.","File Review",null,"Per Review",{"$f":"SUM(F12:O12)","v":0},null,null,null,null,null,null,null,null,null,null,null,null,null,null,null,null,null,null,null,null,null,null,{"$f":"IF((SUMPRODUCT((F12:Z12<>\"\")+0))>0,TRUE,FALSE)","v":false}]
["1-2.","Site Health & Safety Plan",null,"Per Site",0,null,null,null,null,null,null,null,null,null,null,null,null,null,null,null,null,null,null,null,null,null,null,false]
["1-2.a.","Site Health & Safety Plan for Continued Work (no cost to FDEP)",null,"Per Site",0,null,null,null,null,null,null,null,null,null,null,null,null,null,null,null,null,null,null,null,null,null,null,false]
["1-3.","Notice of Discovery of Contamination Package (Initial or TPOC)",null,"Per Package",0,null,null,null,null,null,null,null,null,null,null,null,null,null,null,null,null,null,null,null,null,null,null,false]
["1-4.","Permit Fees (actual fee only, cost to obtain permit is included in applicable pay items)",null,"Reimbursable*",0,null,null,null,null,null,null,null,null,null,null,null,null,null,null,null,null,null,null,null,null,null,null,false]
["1-5.","Off-Site Property Access Agreement",null,"Per Agreement",0,null,null,null,null,null,null,null,null,null,null,null,null,null,null,null,null,null,null,null,null,null,null,false]
["1-5.a.","Site Property Access Agreement for Source Property (no cost to FDEP)",null,"Per Agreement",{"$f":"SUM(F18:O18)","v":0},null,null,null,null,null,null,null,null,null,null,null,null,null,null,null,null,null,null,null,null,null,null,false]
["1-6.","Project Specific Financial Guarantee Bond (if required by FDEP)",null,"Reimbursable*",0,null,null,null,null,null,null,null,null,null,null,null,null,null,null,null,null,null,null,null,null,null,null,false]
["1-7.","6% Handling Fee for Cost Reimbursable Items",null,"% Surcharge",{"$f":"SUM(F20:O20)","v":0},{"$f":"IF((SUM(F16,F19,F24,F49,F274,F284,F285,F286,F293,F294,F295,F296)+SUM(F471:F500))=0,\"\",SUM(F16,F19,F24,F49,F274,F284,F285,F286,F293,F294,F295,F296)+SUM(F471:F500))","v":""},{"$f":"IF((SUM(G16,G19,G24,G49,G274,G284,G285,G286,G293,G294,G295,G296)+SUM(G471:G500))=0,\"\",SUM(G16,G19,G24,G49,G274,G284,G285,G286,G293,G294,G295,G296)+SUM(G471:G500))","v":""},"","","","","","","","",null,null,null,null,null,null,null,null,null,null,null,null,false]
["2.","FIELD ACTIVITIES - GENERAL",null,null,null,null,null,null,null,null,null,null,null,null,null,null,null,null,null,null,null,null,null,null,null,null,null,{"$f":"IF(COUNTIF(AB22:AB25,TRUE)>0,TRUE,FALSE)","v":false}]
["2-1.","Site Reconnaissance/Field Measurement Visit",null,"Per Visit",0,null,null,null,null,null,null,null,null,null,null,null,null,null,null,null,null,null,null,null,null,null,null,{"$f":"IF((SUMPRODUCT((F22:Z22<>\"\")+0))>0,TRUE,FALSE)","v":false}]
["2-2.","Receptor Survey and Exposure Pathway Identification (excludes report)",null,"Per Survey",0,null,null,null,null,null,null,null,null,null,null,null,null,null,null,null,null,null,null,null,null,null,null,{"$f":"IF((SUMPRODUCT((F23:Z23<>\"\")+0))>0,TRUE,FALSE)","v":false}]
["2-3.","Professional Land Survey subject to FDEP authorization to perform and the SPI displaying the cost not to exceed as supported by quote(s) prior to performance",null,"Reimbursable*",0,null,null,null,null,null,null,null,null,null,null,null,null,null,null,null,null,null,null,null,null,null,null,{"$f":"IF((SUMPRODUCT((F24:Z24<>\"\")+0))>0,TRUE,FALSE)","v":false}]
["2-4.","Contractor Oversight for Non-Price Schedule Activities",null,"Per Day",0,null,null,null,null,null,null,null,null,null,null,null,null,null,null,null,null,null,null,null,null,null,null,{"$f":"IF((SUMPRODUCT((F25:Z25<>\"\")+0))>0,TRUE,FALSE)","v":false}]
["3.","MOBILIZATION",null,null,null,null,null,null,null,null,null,null,null,null,null,null,null,null,null,null,null,null,null,null,null,null,null,{"$f":"IF(COUNTIF(AB27:AB46,TRUE)>0,TRUE,FALSE)","v":false}]
["3-1.","Mobilization, Light Duty Vehicle (car or 1/2 ton truck) - ≤ 100 miles each way",null,"Per Round Trip",0,null,null,null,null,null,null,null,null,null,null,null,null,null,null,null,null,null,null,null,null,null,null,{"$f":"IF((SUMPRODUCT((F27:Z27<>\"\")+0))>0,TRUE,FALSE)","v":false}]
["3-2.","Mobilization, Light Duty Vehicle  (car or 1/2 ton truck) - > 100 miles each way",null,"Per Round Trip",0,null,null,null,null,null,null,null,null,null,null,null,null,null,null,null,null,null,null,null,null,null,null,false]
["3-3.","Heavy Duty/Stakebed Truck (3/4 ton +) - ≤ 100 miles each way",null,"Per Round Trip",0,null,null,null,null,null,null,null,null,null,null,null,null,null,null,null,null,null,null,null,null,null,null,false]
["3-4.","Heavy Duty/Stakebed Truck (3/4 ton +) - > 100 miles each way",null,"Per Round Trip",0,null,null,null,null,null,null,null,null,null,null,null,null,null,null,null,null,null,null,null,null,null,null,false]
["3-5.","Work Trailer - ≤ 100 miles each way",null,"Per Round Trip",0,null,null,null,null,null,null,null,null,null,null,null,null,null,null,null,null,null,null,null,null,null,null,false]
["3-6.","Work Trailer - > 100 miles each way",null,"Per Round Trip",0,null,null,null,null,null,null,null,null,null,null,null,null,null,null,null,null,null,null,null,null,null,null,false]
["3-7.a.","DPT Rig and Support Vehicles Mobilization - ≤ 100 miles each way",null,"Per Round Trip",0,null,null,null,null,null,null,null,null,null,null,null,null,null,null,null,null,null,null,null,null,null,null,false]
["3-8.a.","DPT Rig and Support Vehicles Mobilization - > 100 miles each way",null,"Per Round Trip",{"$f":"SUM(F34:O34)","v":0},null,null,null,null,null,null,null,null,null,null,null,null,null,null,null,null,null,null,null,null,null,null,false]
["3-9.a.","Drill Rig and Support Vehicles Mobilization (hollow stem auger, mud rotary or sonic) - ≤ 100 miles each way",null,"Per Round Trip",{"$f":"SUM(F35:O35)","v":0},null,null,null,null,null,null,null,null,null,null,null,null,null,null,null,null,null,null,null,null,null,null,false]
["3-10.a.","Drill Rig and Support Vehicles Mobilization  (hollow stem auger, mud rotary or sonic) - > 100 miles each way",null,"Per Round Trip",{"$f":"SUM(F36:O36)","v":0},null,null,null,null,null,null,null,null,null,null,null,null,null,null,null,null,null,null,null,null,null,null,false]
["3-11.","Excavator Mobilization - ≤ 100 miles each way",null,"Per Round Trip",0,null,null,null,null,null,null,null,null,null,null,null,null,null,null,null,null,null,null,null,null,null,null,false]
["3-12.","Excavator Mobilization - > 100 miles each way",null,"Per Round Trip",0,null,null,null,null,null,null,null,null,null,null,null,null,null,null,null,null,null,null,null,null,null,null,false]
["3-13.a.","LDA Rig and Support Vehicles Mobilization - ≤ 100 miles each way",null,"Per Round Trip",{"$f":"SUM(F39:O39)","v":0},null,null,null,null,null,null,null,null,null,null,null,null,null,null,null,null,null,null,null,null,null,null,false]
["3-14.a.","LDA Rig and Support Vehicles Mobilization - > 100 miles each way",null,"Per Round Trip",{"$f":"SUM(F40:O40)","v":0},null,null,null,null,null,null,null,null,null,null,null,null,null,null,null,null,null,null,null,null,null,null,false]
["3-15.","Loader/Backhoe Mobilization - ≤ 100 miles each way",null,"Per Round Trip",0,null,null,null,null,null,null,null,null,null,null,null,null,null,null,null,null,null,null,null,null,null,null,false]
["3-16.","Loader/Backhoe Mobilization - > 100 miles each way",null,"Per Round Trip",0,null,null,null,null,null,null,null,null,null,null,null,null,null,null,null,null,null,null,null,null,null,null,false]
["3-17.","Mini Excavator/Loader (BobcatTM) Mobilization - ≤ 100 miles each way",null,"Per Round Trip",0,null,null,null,null,null,null,null,null,null,null,null,null,null,null,null,null,null,null,null,null,null,null,false]
["3-18.","Mini Excavator/Loader (BobcatTM) Mobilization - > 100 miles each way",null,"Per Round Trip",0,null,null,null,null,null,null,null,null,null,null,null,null,null,null,null,null,null,null,null,null,null,null,false]
["3-19.","Drum Compactor mobilization - ≤ 100 miles each way",null,"Per Round Trip",{"$f":"SUM(F45:O45)","v":0},null,null,null,null,null,null,null,null,null,null,null,null,null,null,null,null,null,null,null,null,null,null,false]
["3-20.","Drum Compactor mobilization - > 100 miles each way",null,"Per Round Trip",{"$f":"SUM(F46:O46)","v":0},null,null,null,null,null,null,null,null,null,null,null,null,null,null,null,null,null,null,null,null,null,null,false]
["4.","MEALS AND LODGING",null,null,null,null,null,null,null,null,null,null,null,null,null,null,null,null,null,null,null,null,null,null,null,null,null,{"$f":"IF(COUNTIF(AB48:AB49,TRUE)>0,TRUE,FALSE)","v":false}]
["4-1.a.","Per Diem - For travel > 1 consecutive day (prorated in quarter day incrementsin accordance with 112.061, F.S.) - Travel Voucher required and quoted rate should be per person per day",null,"Per Person,\nPer Day",0,null,null,null,null,null,null,null,null,null,null,null,null,null,null,null,null,null,null,null,null,null,null,{"$f":"IF((SUMPRODUCT((F48:Z48<>\"\")+0))>0,TRUE,FALSE)","v":false}]
["4-1.b.","Per Diem - Contractor travel for specific meetings or legal proceedings required by Department (hotel and meals may be paid in accordance with section 112.061, F.S.)",null,"Reimbursable*",0,null,null,null,null,null,null,null,null,null,null,null,null,null,null,null,null,null,null,null,null,null,null,{"$f":"IF((SUMPRODUCT((F49:Z49<>\"\")+0))>0,TRUE,FALSE)","v":false}]
["5.","DRILLING AND BORING",null,null,null,null,null,null,null,null,null,null,null,null,null,null,null,null,null,null,null,null,null,null,null,null,null,{"$f":"IF(COUNTIF(AB51:AB75,TRUE)>0,TRUE,FALSE)","v":false}]
["5-1.a.1.","Split Spoon Sampling – 2 foot (during boring) < 50 feet",null,"Per Spoon ",{"$f":"SUM(F51:O51)","v":0},null,null,null,null,null,null,null,null,null,null,null,null,null,null,null,null,null,null,null,null,null,null,{"$f":"IF((SUMPRODUCT((F51:Z51<>\"\")+0))>0,TRUE,FALSE)","v":false}]
["5-1.a.2.","Split Spoon Sampling – 2 foot (during boring) 50 to 100 feet",null,"Per Spoon ",{"$f":"SUM(F52:O52)","v":0},null,null,null,null,null,null,null,null,null,null,null,null,null,null,null,null,null,null,null,null,null,null,false]
["5-1.a.3.","Split Spoon Sampling – 2 foot (during boring) > 100 feet",null,"Per Spoon ",{"$f":"SUM(F53:O53)","v":0},null,null,null,null,null,null,null,null,null,null,null,null,null,null,null,null,null,null,null,null,null,null,false]
["5-1.b.","Sonic Core Sampling - 5 or 10 foot (during boring)",null,"Per Core ",0,null,null,null,null,null,null,null,null,null,null,null,null,null,null,null,null,null,null,null,null,null,null,false]
["5-2.","Hand Auger Boring ≤ 10 foot total depth ",null,"Per Boring",0,null,null,null,null,null,null,null,null,null,null,null,null,null,null,null,null,null,null,null,null,null,null,false]
["5-3.a.","Direct Push Technology (DPT) Rig and Equipment",null,"Full Day",{"$f":"SUM(F56:O56)","v":0},null,null,null,null,null,null,null,null,null,null,null,null,null,null,null,null,null,null,null,null,null,null,false]
["5-5.a.","DPT Membrane Interface Probe (MIP) Equipped with PID and ECD (add-on cost to DPT base rate)",null,"Full Day",{"$f":"SUM(F57:O57)","v":0},null,null,null,null,null,null,null,null,null,null,null,null,null,null,null,null,null,null,null,null,null,null,false]
["5-6.","HSA or MR Boring, ≤ 6 inch diameter, < 50 foot total depth ",null,"Per Foot",0,null,null,null,null,null,null,null,null,null,null,null,null,null,null,null,null,null,null,null,null,null,null,false]
["5-7.","HSA or MR Boring, ≤ 6 inch diameter, 50 to 100 foot total depth ",null,"Per Foot",0,null,null,null,null,null,null,null,null,null,null,null,null,null,null,null,null,null,null,null,null,null,null,false]
["5-8.","HSA or MR Boring, ≤ 6 inch diameter, > 100 foot total depth ",null,"Per Foot",0,null,null,null,null,null,null,null,null,null,null,null,null,null,null,null,null,null,null,null,null,null,null,false]
["5-9.","HSA or MR Boring, > 6 to 10 inch diameter, < 50 foot total depth ",null,"Per Foot",0,null,null,null,null,null,null,null,null,null,null,null,null,null,null,null,null,null,null,null,null,null,null,false]
["5-10.","HSA or MR Boring, > 6 to 10 inch diameter, 50 to 100 foot total depth ",null,"Per Foot",0,null,null,null,null,null,null,null,null,null,null,null,null,null,null,null,null,null,null,null,null,null,null,false]
["5-11.","HSA or MR Boring, > 6 to 10 inch diameter, > 100 foot total depth ",null,"Per Foot",0,null,null,null,null,null,null,null,null,null,null,null,null,null,null,null,null,null,null,null,null,null,null,false]
["5-12.","HSA or MR Boring, > 10 to 14 inch diameter, < 50 foot total depth ",null,"Per Foot",0,null,null,null,null,null,null,null,null,null,null,null,null,null,null,null,null,null,null,null,null,null,null,false]
["5-13.","HSA or MR Boring, > 10 to 14 inch diameter, 50 to 100 foot total depth ",null,"Per Foot",0,null,null,null,null,null,null,null,null,null,null,null,null,null,null,null,null,null,null,null,null,null,null,false]
["5-14.","HSA or MR Boring, > 10 to 14 inch diameter, > 100 foot total depth ",null,"Per Foot",0,null,null,null,null,null,null,null,null,null,null,null,null,null,null,null,null,null,null,null,null,null,null,false]
["5-15.","Sonic Boring, ≤ 6 inch diameter, < 50 foot total depth ",null,"Per Foot",0,null,null,null,null,null,null,null,null,null,null,null,null,null,null,null,null,null,null,null,null,null,null,false]
["5-16.","Sonic Boring, ≤ 6 inch diameter, 50 to 100 foot total depth ",null,"Per Foot",0,null,null,null,null,null,null,null,null,null,null,null,null,null,null,null,null,null,null,null,null,null,null,false]
["5-17.","Sonic Boring, ≤ 6 inch diameter, > 100 foot total depth ",null,"Per Foot",0,null,null,null,null,null,null,null,null,null,null,null,null,null,null,null,null,null,null,null,null,null,null,false]
["5-18.","Sonic Boring, > 6 to 10 inch diameter, < 50 foot total depth ",null,"Per Foot",0,null,null,null,null,null,null,null,null,null,null,null,null,null,null,null,null,null,null,null,null,null,null,false]
["5-19.","Sonic Boring, > 6 to 10 inch diameter, 50 to 100 foot total depth ",null,"Per Foot",0,null,null,null,null,null,null,null,null,null,null,null,null,null,null,null,null,null,null,null,null,null,null,false]
["5-20.","Sonic Boring, > 6 to 10 inch diameter, > 100 foot total depth ",null,"Per Foot",0,null,null,null,null,null,null,null,null,null,null,null,null,null,null,null,null,null,null,null,null,null,null,false]
["5-21.","Sonic Boring, > 10 to 14 inch diameter, < 50 foot total depth ",null,"Per Foot",0,null,null,null,null,null,null,null,null,null,null,null,null,null,null,null,null,null,null,null,null,null,null,false]
["5-22.","Sonic Boring, > 10 to 14 inch diameter, 50 to 100 foot total depth ",null,"Per Foot",0,null,null,null,null,null,null,null,null,null,null,null,null,null,null,null,null,null,null,null,null,null,null,false]
["5-23.","Sonic Boring, > 10 to 14 inch diameter, > 100 foot total depth ",null,"Per Foot",0,null,null,null,null,null,null,null,null,null,null,null,null,null,null,null,null,null,null,null,null,null,null,false]
["6.","WELL INSTALLATION",null,null,null,null,null,null,null,null,null,null,null,null,null,null,null,null,null,null,null,null,null,null,null,null,null,{"$f":"IF(COUNTIF(AB77:AB96,TRUE)>0,TRUE,FALSE)","v":false}]
["6-1.","Well Installation - 1 inch diameter",null,"Per Foot",0,null,null,null,null,null,null,null,null,null,null,null,null,null,null,null,null,null,null,null,null,null,null,{"$f":"IF((SUMPRODUCT((F77:Z77<>\"\")+0))>0,TRUE,FALSE)","v":false}]
["6-2.a.","Well Installation - 2 inch diameter (vertical)",null,"Per Foot",{"$f":"SUM(F78:O78)","v":0},null,null,null,null,null,null,null,null,null,null,null,null,null,null,null,null,null,null,null,null,null,null,false]
["6-2.b.","Well Installation - 2 inch diameter (horizontal, by trenching, not directional drilling)",null,"Per Foot",{"$f":"SUM(F79:O79)","v":0},null,null,null,null,null,null,null,null,null,null,null,null,null,null,null,null,null,null,null,null,null,null,false]
["6-3.a.","Well Installation - 4 inch diameter (vertical)",null,"Per Foot",{"$f":"SUM(F80:O80)","v":0},null,null,null,null,null,null,null,null,null,null,null,null,null,null,null,null,null,null,null,null,null,null,false]
["6-3.b.","Well Installation - 4 inch diameter (horizontal, by trenching, not directional drilling)",null,"Per Foot",{"$f":"SUM(F81:O81)","v":0},null,null,null,null,null,null,null,null,null,null,null,null,null,null,null,null,null,null,null,null,null,null,false]
["6-4.","Well Installation - 6 inch diameter",null,"Per Foot",0,null,null,null,null,null,null,null,null,null,null,null,null,null,null,null,null,null,null,null,null,null,null,false]
["6-5.","Surface Casing - 6 inch diameter",null,"Per Foot",0,null,null,null,null,null,null,null,null,null,null,null,null,null,null,null,null,null,null,null,null,null,null,false]
["6-6.","Surface Casing - 8 inch diameter",null,"Per Foot",{"$f":"SUM(F84:O84)","v":0},null,null,null,null,null,null,null,null,null,null,null,null,null,null,null,null,null,null,null,null,null,null,false]
["6-7.","Surface Casing - 10 inch diameter",null,"Per Foot",0,null,null,null,null,null,null,null,null,null,null,null,null,null,null,null,null,null,null,null,null,null,null,false]
["6-8.","Surface Casing - 12 inch diameter",null,"Per Foot",0,null,null,null,null,null,null,null,null,null,null,null,null,null,null,null,null,null,null,null,null,null,null,false]
["6-9.a.","Additional Well Screen > 20 feet - 1 inch diameter",null,"Per Foot",0,null,null,null,null,null,null,null,null,null,null,null,null,null,null,null,null,null,null,null,null,null,null,false]
["6-9.b.","Additional Well Screen > 20 feet - 2 inch diameter",null,"Per Foot",0,null,null,null,null,null,null,null,null,null,null,null,null,null,null,null,null,null,null,null,null,null,null,false]
["6-9.c.","Additional Well Screen > 20 feet - 4 inch diameter",null,"Per Foot",0,null,null,null,null,null,null,null,null,null,null,null,null,null,null,null,null,null,null,null,null,null,null,false]
["6-9.d.","Additional Well Screen > 20 feet - 6 inch diameter",null,"Per Foot",0,null,null,null,null,null,null,null,null,null,null,null,null,null,null,null,null,null,null,null,null,null,null,false]
["6-10.","Above Grade Well Completion ",null,"Per Well ",0,null,null,null,null,null,null,null,null,null,null,null,null,null,null,null,null,null,null,null,null,null,null,false]
["6-11.","Installation of Well Vault - 2 x 2 x 2 foot",null,"Per Vault",0,null,null,null,null,null,null,null,null,null,null,null,null,null,null,null,null,null,null,null,null,null,null,false]
["6-12.","Installation of Well Vault - 4 x 4 x 2 foot",null,"Per Vault",0,null,null,null,null,null,null,null,null,null,null,null,null,null,null,null,null,null,null,null,null,null,null,false]
["6-13.","Well Redevelopment",null,"Per Well ",{"$f":"SUM(F94:O94)","v":0},null,null,null,null,null,null,null,null,null,null,null,null,null,null,null,null,null,null,null,null,null,null,false]
["6-14.","Removal and Reinstallation of 8-inch Manhole and Well Pad (well pad/manhole has been damaged or destroyed)",null,"Per Well ",{"$f":"SUM(F95:O95)","v":0},null,null,null,null,null,null,null,null,null,null,null,null,null,null,null,null,null,null,null,null,null,null,false]
["6-15.","Removal and Reinstallation of 12-inch Manhole and Well Pad (well pad/manhole has been damaged or destroyed)",null,"Per Well ",{"$f":"SUM(F96:O96)","v":0},null,null,null,null,null,null,null,null,null,null,null,null,null,null,null,null,null,null,null,null,null,null,false]
["7.","WELL ABANDONMENT",null,null,null,null,null,null,null,null,null,null,null,null,null,null,null,null,null,null,null,null,null,null,null,null,null,{"$f":"IF(COUNTIF(AB98:AB104,TRUE)>0,TRUE,FALSE)","v":false}]
["7-1.","Grout and Abandon Well, 1 to 2 inch diameter",null,"Per Foot",0,null,null,null,null,null,null,null,null,null,null,null,null,null,null,null,null,null,null,null,null,null,null,{"$f":"IF((SUMPRODUCT((F98:Z98<>\"\")+0))>0,TRUE,FALSE)","v":false}]
["7-2.","Grout and Abandon Well, > 2 to 4 inch diameter",null,"Per Foot",0,null,null,null,null,null,null,null,null,null,null,null,null,null,null,null,null,null,null,null,null,null,null,false]
["7-3.","Grout and Abandon Well, > 4 to 6 inch diameter",null,"Per Foot",0,null,null,null,null,null,null,null,null,null,null,null,null,null,null,null,null,null,null,null,null,null,null,false]
["7-4.","Grout and Abandon Well, > 6 inch diameter",null,"Per Foot",0,null,null,null,null,null,null,null,null,null,null,null,null,null,null,null,null,null,null,null,null,null,null,false]
["7-5.","Removal of Well Vault - 2 x 2 x 2 foot",null,"Per Vault",0,null,null,null,null,null,null,null,null,null,null,null,null,null,null,null,null,null,null,null,null,null,null,false]
["7-6.","Removal of Well Vault - 4 x 4 x 2 foot",null,"Per Vault",0,null,null,null,null,null,null,null,null,null,null,null,null,null,null,null,null,null,null,null,null,null,null,false]
["7-7.","Removal of Well Pad and Manhole",null,"Per Well ",{"$f":"SUM(F104:O104)","v":0},null,null,null,null,null,null,null,null,null,null,null,null,null,null,null,null,null,null,null,null,null,null,false]
["8.","SAMPLE COLLECTION AND FIELD TESTING",null,null,null,null,null,null,null,null,null,null,null,null,null,null,null,null,null,null,null,null,null,null,null,null,null,{"$f":"IF(COUNTIF(AB106:AB119,TRUE)>0,TRUE,FALSE)","v":false}]
["8-1.","Monitoring Well Sampling with Water Level, ≤ 100 foot depth",null,"Per Well ",0,null,null,null,null,null,null,null,null,null,null,null,null,null,null,null,null,null,null,null,null,null,null,{"$f":"IF((SUMPRODUCT((F106:Z106<>\"\")+0))>0,TRUE,FALSE)","v":false}]
["8-2.","Monitoring Well Sampling with Water Level, > 100 foot depth",null,"Per Well ",0,null,null,null,null,null,null,null,null,null,null,null,null,null,null,null,null,null,null,null,null,null,null,false]
["8-3.","Domestic Water Well Sampling",null,"Per Well ",0,null,null,null,null,null,null,null,null,null,null,null,null,null,null,null,null,null,null,null,null,null,null,false]
["8-4.","Other Water Sampling ",null,"Per Sample",0,null,null,null,null,null,null,null,null,null,null,null,null,null,null,null,null,null,null,null,null,null,null,false]
["8-5.","Free Product Sample Collection",null,"Per Sample",0,null,null,null,null,null,null,null,null,null,null,null,null,null,null,null,null,null,null,null,null,null,null,false]
["8-6.","Soil/Sediment Sample Collection",null,"Per Sample",0,null,null,null,null,null,null,null,null,null,null,null,null,null,null,null,null,null,null,null,null,null,null,false]
["8-7.","Water Level or Free Product Gauging ",null,"Per Well ",0,null,null,null,null,null,null,null,null,null,null,null,null,null,null,null,null,null,null,null,null,null,null,false]
["8-8.","Free Product Gauging & Bailing ",null,"Per Well ",0,null,null,null,null,null,null,null,null,null,null,null,null,null,null,null,null,null,null,null,null,null,null,false]
["8-9.","Vapor/Ambient Air Sample Collection - Passive Dosimeter, Sorbent Tube, TedlarTM Bag (or Equivalent)",null,"Per Sample",0,null,null,null,null,null,null,null,null,null,null,null,null,null,null,null,null,null,null,null,null,null,null,false]
["8-10.","Vapor/Ambient Air Sample Collection - SUMMATM Canister (or equivalent)",null,"Per Sample",0,null,null,null,null,null,null,null,null,null,null,null,null,null,null,null,null,null,null,null,null,null,null,false]
["8-11.","Electronic Data Deliverables (EDD)",null,"Per Sampling Event",{"$f":"SUM(F116:O116)","v":0},null,null,null,null,null,null,null,null,null,null,null,null,null,null,null,null,null,null,null,null,null,null,false]
["8-12.","Survey Latitude/Longitude of Existing Monitor Wells",null,"Per Well ",{"$f":"SUM(F117:O117)","v":0},null,null,null,null,null,null,null,null,null,null,null,null,null,null,null,null,null,null,null,null,null,null,false]
["8-13.","Survey Latitude/Longitude of New Monitor Wells",null,"Per Well ",{"$f":"SUM(F118:O118)","v":0},null,null,null,null,null,null,null,null,null,null,null,null,null,null,null,null,null,null,null,null,null,null,false]
["8-14.","Encore (25 gram) for SPLP Soil Sample Collection:  [Per Encore].  The cost will include the 25 gram Encore samples submitted to the laboratory for SPLP testing and the 25 gram Encore samples collected in the field but not submitted to the laboratory for testing (discarded).",null,"Per Sample",{"$f":"SUM(F119:O119)","v":0},null,null,null,null,null,null,null,null,null,null,null,null,null,null,null,null,null,null,null,null,null,null,false]
["9.","LABORATORY ANALYSIS  ",null,null,null,null,null,null,null,null,null,null,null,null,null,null,null,null,null,null,null,null,null,null,null,null,null,{"$f":"IF(OR(AB121,AB147,AB197,AB202,AB205)=TRUE,TRUE,FALSE)","v":false}]
["9.A.","SOIL/SEDIMENT ANALYSIS",null,null,null,null,null,null,null,null,null,null,null,null,null,null,null,null,null,null,null,null,null,null,null,null,null,{"$f":"IF(COUNTIF(AB122:AB146,TRUE)>0,TRUE,FALSE)","v":false}]
["9-1.","Soil, Used Oil/Unknown Product Group-Table D of Ch. 62-780, F.A.C., except for non-Priority Pollutant Organics (multiple methods)",null,"Per Sample",0,null,null,null,null,null,null,null,null,null,null,null,null,null,null,null,null,null,null,null,null,null,null,{"$f":"IF((SUMPRODUCT((F122:Z122<>\"\")+0))>0,TRUE,FALSE)","v":false}]
["9-2.","Soil, BTEX + MTBE (EPA 8021 or EPA 8260)",null,"Per Sample",0,null,null,null,null,null,null,null,null,null,null,null,null,null,null,null,null,null,null,null,null,null,null,false]
["9-3.","Soil, Volatile Organic Halocarbons (EPA 8021 or EPA 8260)",null,"Per Sample",0,null,null,null,null,null,null,null,null,null,null,null,null,null,null,null,null,null,null,null,null,null,null,false]
["9-4.","Soil, BTEX + MTBE + VOHs (EPA 8021 or EPA 8260)",null,"Per Sample",0,null,null,null,null,null,null,null,null,null,null,null,null,null,null,null,null,null,null,null,null,null,null,false]
["9-5.","Soil, Polycyclic Aromatic Hydrocarbons (EPA 8270 or EPA 8310)",null,"Per Sample",0,null,null,null,null,null,null,null,null,null,null,null,null,null,null,null,null,null,null,null,null,null,null,false]
["9-6.","Soil, Priority Pollutant Volatile Organics (EPA 8260)",null,"Per Sample",0,null,null,null,null,null,null,null,null,null,null,null,null,null,null,null,null,null,null,null,null,null,null,false]
["9-7.","Soil, Priority Pollutant Extractable Organics-Base Neutral and Acid Extractables (EPA 8270 list [e.g., EPA 8081/8082 + EPA 8270])",null,"Per Sample",0,null,null,null,null,null,null,null,null,null,null,null,null,null,null,null,null,null,null,null,null,null,null,false]
["9-8.","Soil, Total Recoverable Petroleum Hydrocarbons (FL-PRO)",null,"Per Sample",0,null,null,null,null,null,null,null,null,null,null,null,null,null,null,null,null,null,null,null,null,null,null,false]
["9-8.a.","Soil, TRPH Fractionation (MADEP-EPH/VPH Method or TPHCWG Direct Method)",null,"Per Sample",{"$f":"SUM(F130:O130)","v":0},null,null,null,null,null,null,null,null,null,null,null,null,null,null,null,null,null,null,null,null,null,null,false]
["9-9.","Soil, PCBs [or Aroclors] (EPA 8082)",null,"Per Sample",0,null,null,null,null,null,null,null,null,null,null,null,null,null,null,null,null,null,null,null,null,null,null,false]
["9-10.","Soil, 8 RCRA Metals (EPA 6010 or EPA 6020 [Arsenic, Barium, Cadmium, Chromium, Lead, Selenium, Silver] and EPA 6020 or EPA 7471 [Mercury])",null,"Per Sample",0,null,null,null,null,null,null,null,null,null,null,null,null,null,null,null,null,null,null,null,null,null,null,false]
["9-11.","Soil, Arsenic (EPA 6010 or EPA 6020)",null,"Per Sample",0,null,null,null,null,null,null,null,null,null,null,null,null,null,null,null,null,null,null,null,null,null,null,false]
["9-12.","Soil, Cadmium (EPA 6010 or EPA 6020)",null,"Per Sample",0,null,null,null,null,null,null,null,null,null,null,null,null,null,null,null,null,null,null,null,null,null,null,false]
["9-13.","Soil, Chromium (EPA 6010 or EPA 6020)",null,"Per Sample",0,null,null,null,null,null,null,null,null,null,null,null,null,null,null,null,null,null,null,null,null,null,null,false]
["9-14.","Soil, Lead (EPA 6010 or EPA 6020)",null,"Per Sample",0,null,null,null,null,null,null,null,null,null,null,null,null,null,null,null,null,null,null,null,null,null,null,false]
["9-15.","Soil, Toxicity Characteristic Leaching Procedure-Extraction Only (EPA 1311)",null,"Per Sample",0,null,null,null,null,null,null,null,null,null,null,null,null,null,null,null,null,null,null,null,null,null,null,false]
["9-16.","Soil, Synthetic Precipitation Leaching Procedure-Extraction Only (EPA1312)",null,"Per Sample",0,null,null,null,null,null,null,null,null,null,null,null,null,null,null,null,null,null,null,null,null,null,null,false]
["9-17.","Soil, Organic Carbon, Total (EPA 9060 or Walkey-Black)",null,"Per Sample",0,null,null,null,null,null,null,null,null,null,null,null,null,null,null,null,null,null,null,null,null,null,null,false]
["9-18.","Soil, Dry Bulk Density (ASTM D1556-07, ASTM D2167-08, ASTM D2922-01, -04, -04e, -96e1 or ASTM D2937-10)",null,"Per Sample",0,null,null,null,null,null,null,null,null,null,null,null,null,null,null,null,null,null,null,null,null,null,null,false]
["9-19.","Soil, Moisture Content (ASTM D2216-10)",null,"Per Sample",0,null,null,null,null,null,null,null,null,null,null,null,null,null,null,null,null,null,null,null,null,null,null,false]
["9-20.","Soil, Texture, (See Gee 7 Bauder [1966])",null,"Per Sample",0,null,null,null,null,null,null,null,null,null,null,null,null,null,null,null,null,null,null,null,null,null,null,false]
["9-21.","Soil, GC/MS Full Scan, Alkanes, Isoalkanes, Cycloalkanes, Aromatics, Bicyclane, Sterane, and Terpane Biomarkers (ASTM D5739 High Resolution GC/MS)",null,"Per Sample",0,null,null,null,null,null,null,null,null,null,null,null,null,null,null,null,null,null,null,null,null,null,null,false]
["9-22.","Soil, Gasoline Hydrocarbon Composition, Gasoline PIANO (paraffins, isoparaffins, aromatics, naphthenes and olefins) (EPA 8260Mod, High Resolution GC/MS)",null,"Per Sample",0,null,null,null,null,null,null,null,null,null,null,null,null,null,null,null,null,null,null,null,null,null,null,false]
["9-23.","Soil, 5 Fuel Oxygenates, MTBE, DIPE, TAME, ETBE and TBA (EPA 8260Mod, High Resolution GC/MS)",null,"Per Sample",0,null,null,null,null,null,null,null,null,null,null,null,null,null,null,null,null,null,null,null,null,null,null,false]
["9-24.","Soil, C10-C40 Alkane Fingerprint, N-Alkanes and Isoalkanes (ASTM D3328 GC/MS)",null,"Per Sample",0,null,null,null,null,null,null,null,null,null,null,null,null,null,null,null,null,null,null,null,null,null,null,false]
["9.B.","WATER ANALYSIS",null,null,null,null,null,null,null,null,null,null,null,null,null,null,null,null,null,null,null,null,null,null,null,null,null,{"$f":"IF(COUNTIF(AB148:AB196,TRUE)>0,TRUE,FALSE)","v":false}]
["9-25.","Water, Gasoline/Kerosene Analytical Group-Table C of Ch. 62-780, F.A.C. (multiple methods)",null,"Per Sample",0,null,null,null,null,null,null,null,null,null,null,null,null,null,null,null,null,null,null,null,null,null,null,{"$f":"IF((SUMPRODUCT((F148:Z148<>\"\")+0))>0,TRUE,FALSE)","v":false}]
["9-26.","Water, Used Oil/Unknown Product Group-Table D of Ch. 62-780, F.A.C., except for non-Priority Pollutant Organics (multiple methods)",null,"Per Sample",0,null,null,null,null,null,null,null,null,null,null,null,null,null,null,null,null,null,null,null,null,null,null,false]
["9-27.","Water, BTEX + MTBE (EPA 602, EPA 624, EPA 8021 or EPA 8260)",null,"Per Sample",0,null,null,null,null,null,null,null,null,null,null,null,null,null,null,null,null,null,null,null,null,null,null,false]
["9-28.","Water, Volatile Organic Halocarbons, except EDB (EPA 8021 or EPA 8260)",null,"Per Sample",0,null,null,null,null,null,null,null,null,null,null,null,null,null,null,null,null,null,null,null,null,null,null,false]
["9-29.","Water, BTEX + MTBE + VOHs (EPA 601/602, EPA 624, EPA 6021 or EPA 8260)",null,"Per Sample",0,null,null,null,null,null,null,null,null,null,null,null,null,null,null,null,null,null,null,null,null,null,null,false]
["9-30.","Water, Polycyclic Aromatic Hydrocarbons, including 1-methylnaphthalene + 2-methylnaphthalene (EPA 610 [HPLC], EPA 625, EPA 8270 or EPA 8310)",null,"Per Sample",0,null,null,null,null,null,null,null,null,null,null,null,null,null,null,null,null,null,null,null,null,null,null,false]
["9-31.","Water, EDB [1,2-dibromoethane or ethylene dibromide] (EPA 504.1 or EPA 8011)",null,"Per Sample",0,null,null,null,null,null,null,null,null,null,null,null,null,null,null,null,null,null,null,null,null,null,null,false]
["9-31.a.","Water, EDB [1,2-dibromoethane or ethylene dibromide] (EPA 8260 SIM)",null,"Per Sample",{"$f":"SUM(F155:O155)","v":0},null,null,null,null,null,null,null,null,null,null,null,null,null,null,null,null,null,null,null,null,null,null,false]
["9-32.","Water, Priority Pollutant Volatile Organics [for NPDES purposes only] (EPA 624)",null,"Per Sample",0,null,null,null,null,null,null,null,null,null,null,null,null,null,null,null,null,null,null,null,null,null,null,false]
["9-33.","Water, Priority Pollutant Volatile Organics (EPA 8260)",null,"Per Sample",0,null,null,null,null,null,null,null,null,null,null,null,null,null,null,null,null,null,null,null,null,null,null,false]
["9-34.","Water, Priority Pollutant Extractable Organics-Base Neutral and Acid Extractables [for NPDES purposes only] (EPA 625 list [e.g., EPA 608 + EPA 625])",null,"Per Sample",{"$f":"SUM(F158:O158)","v":0},null,null,null,null,null,null,null,null,null,null,null,null,null,null,null,null,null,null,null,null,null,null,false]
["9-35.","Water, Priority Pollutant Extractable Organics-Base Neutral and Acid Extractables (EPA 8270 list [e.g., EPA 8081/8082 + EPA 8270 or EPA 608 + EPA 8270)",null,"Per Sample",0,null,null,null,null,null,null,null,null,null,null,null,null,null,null,null,null,null,null,null,null,null,null,false]
["9-36.","Water, Total Recoverable Petroleum Hydrocarbons (FL-PRO)",null,"Per Sample",0,null,null,null,null,null,null,null,null,null,null,null,null,null,null,null,null,null,null,null,null,null,null,false]
["9-37.","Water, PCBs [or Aroclors] (EPA 608 or EPA 8082)",null,"Per Sample",0,null,null,null,null,null,null,null,null,null,null,null,null,null,null,null,null,null,null,null,null,null,null,false]
["9-38.","Water, Arsenic, Total (EPA 200.7, EPA 200.8, EPA 6010 or EPA 6020)",null,"Per Sample",0,null,null,null,null,null,null,null,null,null,null,null,null,null,null,null,null,null,null,null,null,null,null,false]
["9-39.","Water, Cadmium, Total (EPA 200.7, EPA 200.8, EPA 6010 or EPA 6020)",null,"Per Sample",0,null,null,null,null,null,null,null,null,null,null,null,null,null,null,null,null,null,null,null,null,null,null,false]
["9-40.","Water, Chromium, Total (EPA 200.7, EPA 200.8, EPA 6010 or EPA 6020)",null,"Per Sample",0,null,null,null,null,null,null,null,null,null,null,null,null,null,null,null,null,null,null,null,null,null,null,false]
["9-41.","Water, Lead, Total (EPA 200.7, EPA 200.8, EPA 6010 or EPA 6020)",null,"Per Sample",0,null,null,null,null,null,null,null,null,null,null,null,null,null,null,null,null,null,null,null,null,null,null,false]
["9-41.a.","Water, Dissolved Lead (includes filter appropriate to sample method - EPA 200.7, 200.9, 6010B, or 7380)",null,"Per Sample",{"$f":"SUM(F166:O166)","v":0},null,null,null,null,null,null,null,null,null,null,null,null,null,null,null,null,null,null,null,null,null,null,false]
["9-42.","Water, Mercury, Total (EPA 245.1, EPA 6020 or EPA 7470)",null,"Per Sample",0,null,null,null,null,null,null,null,null,null,null,null,null,null,null,null,null,null,null,null,null,null,null,false]
["9-43.","Water, Calcium, Total (EPA 200.7, EPA 6010 or EPA 6020)",null,"Per Sample",0,null,null,null,null,null,null,null,null,null,null,null,null,null,null,null,null,null,null,null,null,null,null,false]
["9-44.","Water, Iron, Total (EPA 200.7, EPA 6010 or EPA 6020)",null,"Per Sample",0,null,null,null,null,null,null,null,null,null,null,null,null,null,null,null,null,null,null,null,null,null,null,false]
["9-44.a.","Water, Dissolved Iron (includes filter appropriate to sample method - EPA 200.7, 200.9, 6010B, or 7380)",null,"Per Sample",{"$f":"SUM(F170:O170)","v":0},null,null,null,null,null,null,null,null,null,null,null,null,null,null,null,null,null,null,null,null,null,null,false]
["9-45.","Water, Magnesium, Total (EPA 200.7, EPA 6010 or EPA 6020)",null,"Per Sample",0,null,null,null,null,null,null,null,null,null,null,null,null,null,null,null,null,null,null,null,null,null,null,false]
["9-46.","Water, Manganese, Total (EPA 200.7, EPA 200.8, EPA 6010 or EPA 6020)",null,"Per Sample",0,null,null,null,null,null,null,null,null,null,null,null,null,null,null,null,null,null,null,null,null,null,null,false]
["9-47.","Water, Potassium, Total (EPA 200.7, EPA 6010 or EPA 6020)",null,"Per Sample",0,null,null,null,null,null,null,null,null,null,null,null,null,null,null,null,null,null,null,null,null,null,null,false]
["9-48.","Water, Sodium, Total (EPA 200.7, EPA 6010 or EPA 6020)",null,"Per Sample",0,null,null,null,null,null,null,null,null,null,null,null,null,null,null,null,null,null,null,null,null,null,null,false]
["9-49.","Water, Alkalinity [as CaCO3] (EPA 310.2 or SM 2320 B)",null,"Per Sample",0,null,null,null,null,null,null,null,null,null,null,null,null,null,null,null,null,null,null,null,null,null,null,false]
["9-50.","Water, Ammonia [as N] (EPA 350.1, SM 4500-NH3 C, SM 4500-NH3 D, SM 4500-NH3 G or SM 4500-NH3 H)",null,"Per Sample",0,null,null,null,null,null,null,null,null,null,null,null,null,null,null,null,null,null,null,null,null,null,null,false]
["9-51.","Water, Chloride (EPA 300.0, EPA 9056, EPA 9251, EPA 9053, SM 4500CI B, SM 4500CI C or SM 4500CI E)",null,"Per Sample",0,null,null,null,null,null,null,null,null,null,null,null,null,null,null,null,null,null,null,null,null,null,null,false]
["9-52.","Water, Hardness, Total [as CaCO3] (SM 2340 B or SM 2340 C)",null,"Per Sample",0,null,null,null,null,null,null,null,null,null,null,null,null,null,null,null,null,null,null,null,null,null,null,false]
["9-53.","Water, Nitrate [as N] (EPA 300.0 or EPA 353.2)",null,"Per Sample",0,null,null,null,null,null,null,null,null,null,null,null,null,null,null,null,null,null,null,null,null,null,null,false]
["9-54.","Water, Nitrate-Nitrite [as N] (EPA 300.0, EPA 353.2, SM 4500-NO3 E or SM 4500-NO3 F)",null,"Per Sample",0,null,null,null,null,null,null,null,null,null,null,null,null,null,null,null,null,null,null,null,null,null,null,{"$f":"IF((SUMPRODUCT((F180:Z180<>\"\")+0))>0,TRUE,FALSE)","v":false}]
["9-55.","Water, Nitrite [as N] (EPA 300.0, EPA 300.1, SM 4500-NO2 B or SM 4500-NO3 F)",null,"Per Sample",0,null,null,null,null,null,null,null,null,null,null,null,null,null,null,null,null,null,null,null,null,null,null,false]
["9-56.","Water, Organic Carbon, Total (SM 5310 B, SM 5310 C or EPA 9060)",null,"Per Sample",0,null,null,null,null,null,null,null,null,null,null,null,null,null,null,null,null,null,null,null,null,null,null,false]
["9-57.","Water, Orthophosphate [as P] (EPA 300.0, EPA 300.1, EPA 365.1, EPA 365.3, EPA 9056, SM 4500-PE or SM 4500-PF)",null,"Per Sample",0,null,null,null,null,null,null,null,null,null,null,null,null,null,null,null,null,null,null,null,null,null,null,false]
["9-58.","Water, Residue-filterable [Total Dissolved Solids] (SM 2540 C)",null,"Per Sample",0,null,null,null,null,null,null,null,null,null,null,null,null,null,null,null,null,null,null,null,null,null,null,false]
["9-59.","Water, Residue-nonfilterable [Total Suspended Solids] (SM 2540 D)",null,"Per Sample",0,null,null,null,null,null,null,null,null,null,null,null,null,null,null,null,null,null,null,null,null,null,null,false]
["9-60.","Water, Sulfate (ASTM D516-02, ASTM D516-90, EPA 300.0, EPA 300.1, EPA 375.2, EPA 9038, EPA 9056 or SM 4500-SO4 C)",null,"Per Sample",0,null,null,null,null,null,null,null,null,null,null,null,null,null,null,null,null,null,null,null,null,null,null,false]
["9-61.","Water, Heterotrophic Plate Count (SM 9215 B)",null,"Per Sample",0,null,null,null,null,null,null,null,null,null,null,null,null,null,null,null,null,null,null,null,null,null,null,false]
["9-62.","Water, Acute Bioassay-96 Hour, Freshwater, Vertebrate/Invertebrate [Vertebrate: Pimephales promelas or Cyprinella leedsi/Invertebrate: Ceriodaphnia dubia] (EPA 2000.0/2002.0)",null,"Per Sample",0,null,null,null,null,null,null,null,null,null,null,null,null,null,null,null,null,null,null,null,null,null,null,false]
["9-63.","Water, Acute Bioassay-96 Hour, Estuarine + Marine, Vertebrate/Invertebrate [Vertebrate: Menidia beryllina, Meridia menidia or Menida peninsulae/Invertebrate: Mysidopsis bahia] (EPA 2006.0/2007.0)",null,"Per Sample",0,null,null,null,null,null,null,null,null,null,null,null,null,null,null,null,null,null,null,null,null,null,null,false]
["9-64.","Water, GC/MS Full Scan, Alkanes, Isoalkanes, Cycloalkanes, Aromatics, Bicyclane, Sterane, and Terpane Biomarkers (ASTM D5739 High Resolution GC/MS)",null,"Per Sample",0,null,null,null,null,null,null,null,null,null,null,null,null,null,null,null,null,null,null,null,null,null,null,false]
["9-65.","Water, Gasoline Hydrocarbon Composition, Gasoline PIANO [paraffins, isoparaffins, aromatics, naphthenes and olefins] (EPA 8260Mod, High Resolution GC/MS)",null,"Per Sample",0,null,null,null,null,null,null,null,null,null,null,null,null,null,null,null,null,null,null,null,null,null,null,false]
["9-66.","Water, 5 Fuel Oxygenates, MTBE, DIPE, TAME, ETBE and TBA (EPA 8260Mod, High Resolution GC/MS)",null,"Per Sample",0,null,null,null,null,null,null,null,null,null,null,null,null,null,null,null,null,null,null,null,null,null,null,false]
["9-67.","Water, C10-C40 Alkane Fingerprint, N-Alkanes and Isoalkanes (ASTM D3328 GC/MS)",null,"Per Sample",0,null,null,null,null,null,null,null,null,null,null,null,null,null,null,null,null,null,null,null,null,null,null,false]
["9-78.","Water, BTEX/MTBE + Naphthalene (EPA 8260)",null,"Per Sample",{"$f":"SUM(F194:O194)","v":0},null,null,null,null,null,null,null,null,null,null,null,null,null,null,null,null,null,null,null,null,null,null,false]
["9-79.","Water, EDC [1,2-dichloroethane] (EPA Method 8021 or 8260)",null,"Per Sample",{"$f":"SUM(F195:O195)","v":0},null,null,null,null,null,null,null,null,null,null,null,null,null,null,null,null,null,null,null,null,null,null,false]
["9-80.","Water, Methane (EPA SOP RSK-175)",null,"Per Sample",{"$f":"SUM(F196:O196)","v":0},null,null,null,null,null,null,null,null,null,null,null,null,null,null,null,null,null,null,null,null,null,null,false]
["9.C.","AIR ANALYSIS",null,null,null,null,null,null,null,null,null,null,null,null,null,null,null,null,null,null,null,null,null,null,null,null,null,{"$f":"IF(COUNTIF(AB198:AB201,TRUE)>0,TRUE,FALSE)","v":false}]
["9-68.","Air, Total Petroleum Hydrocarbons (EPA Method 18 or TO-3)",null,"Per Sample",0,null,null,null,null,null,null,null,null,null,null,null,null,null,null,null,null,null,null,null,null,null,null,{"$f":"IF((SUMPRODUCT((F198:Z198<>\"\")+0))>0,TRUE,FALSE)","v":false}]
["9-69.","Air, Volatile Organic Aromatics (EPA Method TO-15)",null,"Per Sample",0,null,null,null,null,null,null,null,null,null,null,null,null,null,null,null,null,null,null,null,null,null,null,{"$f":"IF((SUMPRODUCT((F199:Z199<>\"\")+0))>0,TRUE,FALSE)","v":false}]
["9-70.","Air, Polycyclic Aromatic Hydrocarbons (EPA Method TO-13)",null,"Per Sample",0,null,null,null,null,null,null,null,null,null,null,null,null,null,null,null,null,null,null,null,null,null,null,{"$f":"IF((SUMPRODUCT((F200:Z200<>\"\")+0))>0,TRUE,FALSE)","v":false}]
["9-71.","Air, Volatile Organic Compounds (EPA Method TO-17)",null,"Per Sample",0,null,null,null,null,null,null,null,null,null,null,null,null,null,null,null,null,null,null,null,null,null,null,{"$f":"IF((SUMPRODUCT((F201:Z201<>\"\")+0))>0,TRUE,FALSE)","v":false}]
["9.D.","PRODUCT ANALYSIS",null,null,null,null,null,null,null,null,null,null,null,null,null,null,null,null,null,null,null,null,null,null,null,null,null,{"$f":"IF(COUNTIF(AB203:AB204,TRUE)>0,TRUE,FALSE)","v":false}]
["9-72.","Product, C3-C44 Hydrocarbon Fingerprint, Gasoline PIANO [paraffins, isoparaffins, aromatics, naphthenes and olefins], alkanes and isoalkanes (ASTM D3328 High Resolution GC/FID)",null,"Per Sample",0,null,null,null,null,null,null,null,null,null,null,null,null,null,null,null,null,null,null,null,null,null,null,{"$f":"IF((SUMPRODUCT((F203:Z203<>\"\")+0))>0,TRUE,FALSE)","v":false}]
["9-73.","Product, GC/MS Full Scan, alkanes, isoalkanes, cycloalkanes, aromatics, bicyclane, sterane, and terpane biomarkers (ASTM D5739 High Resolution GC/MS)",null,"Per Sample",0,null,null,null,null,null,null,null,null,null,null,null,null,null,null,null,null,null,null,null,null,null,null,{"$f":"IF((SUMPRODUCT((F204:Z204<>\"\")+0))>0,TRUE,FALSE)","v":false}]
["9.E.","OTHER ANALYSIS",null,null,null,null,null,null,null,null,null,null,null,null,null,null,null,null,null,null,null,null,null,null,null,null,null,{"$f":"IF(COUNTIF(AB206:AB208,TRUE)>0,TRUE,FALSE)","v":false}]
["9-75.","Additional Laboratory % Surcharge authorized in the ATC contract for 7 Day Turnaround. The price should be a total of all standard costs for analysis receiving 7 Day Turnaround in each Task.  Enter this price in the Quant. column for the associated task.  The rate is the % surcharge authorized in the ATC contract (% surcharge is calculated using the item price, where: $1.00 = 100%, $0.75 = 75%, ect.). This will be payable per sample per % surcharge utilizing the dollars as the number of units.",null,"Percent\nSurcharge",0,null,null,null,null,null,null,null,null,null,null,null,null,null,null,null,null,null,null,null,null,null,null,{"$f":"IF((SUMPRODUCT((F206:Z206<>\"\")+0))>0,TRUE,FALSE)","v":false}]
["9-76.","Additional Laboratory % Surcharge authorized in the ATC contract for 3 Day Turnaround. The price should be a total of all standard costs for analysis receiving 3 Day Turnaround in each Task.  Enter this price in the Quant. column for the associated task.  The rate is the % surcharge authorized in the ATC contract (% surcharge is calculated using the item price, where: $1.00 = 100%, $0.75 = 75%, ect.). This will be payable per sample per % surcharge utilizing the dollars as the number of units.",null,"Percent\nSurcharge",0,null,null,null,null,null,null,null,null,null,null,null,null,null,null,null,null,null,null,null,null,null,null,{"$f":"IF((SUMPRODUCT((F207:Z207<>\"\")+0))>0,TRUE,FALSE)","v":false}]
["9-77.","Additional Laboratory % Surcharge authorized in the ATC contract for 1 Day Turnaround. The price should be a total of all standard costs for analysis receiving 1 Day Turnaround in each Task.  Enter this price in the Quant. column for the associated task.  The rate is the % surcharge authorized in the ATC contract (% surcharge is calculated using the item price, where: $1.00 = 100%, $0.75 = 75%, ect.). This will be payable per sample per % surcharge utilizing the dollars as the number of units.",null,"Percent\nSurcharge",0,null,null,null,null,null,null,null,null,null,null,null,null,null,null,null,null,null,null,null,null,null,null,{"$f":"IF((SUMPRODUCT((F208:Z208<>\"\")+0))>0,TRUE,FALSE)","v":false}]
["10.","SOIL SOURCE REMOVAL RELATED",null,null,null,null,null,null,null,null,null,null,null,null,null,null,null,null,null,null,null,null,null,null,null,null,null,{"$f":"IF(COUNTIF(AB210:AB238,TRUE)>0,TRUE,FALSE)","v":false}]
["10-1.a.","Sheet Piling Installation for ≤  20 feet deep Excavation",null,"Per Sq. Foot",{"$f":"SUM(F210:O210)","v":0},null,null,null,null,null,null,null,null,null,null,null,null,null,null,null,null,null,null,null,null,null,null,{"$f":"IF((SUMPRODUCT((F210:Z210<>\"\")+0))>0,TRUE,FALSE)","v":false}]
["10-1.b.","Sheet Piling Rental for ≤  20 feet deep Excavation",null,"Per Sq. Foot/Day",0,null,null,null,null,null,null,null,null,null,null,null,null,null,null,null,null,null,null,null,null,null,null,false]
["10-1.c.","Sheet Piling Rental for ≤  20 feet deep Excavation",null,"Per Sq. Foot/Week",0,null,null,null,null,null,null,null,null,null,null,null,null,null,null,null,null,null,null,null,null,null,null,false]
["10-1.d.","Sheet Piling Rental for ≤  20 feet deep Excavation",null,"Per Sq. Foot/Month",0,null,null,null,null,null,null,null,null,null,null,null,null,null,null,null,null,null,null,null,null,null,null,false]
["10-2.a.","Sheet Piling Installation for > 20 feet deep Excavation",null,"Per Sq. Foot",0,null,null,null,null,null,null,null,null,null,null,null,null,null,null,null,null,null,null,null,null,null,null,false]
["10-2.b.","Sheet Piling Rental for >  20 feet deep Excavation",null,"Per Sq. Foot/Day",0,null,null,null,null,null,null,null,null,null,null,null,null,null,null,null,null,null,null,null,null,null,null,false]
["10-2.c.","Sheet Piling Rental for >  20 feet deep Excavation",null,"Per Sq. Foot/Week",0,null,null,null,null,null,null,null,null,null,null,null,null,null,null,null,null,null,null,null,null,null,null,false]
["10-2.d.","Sheet Piling Rental for >  20 feet deep Excavation",null,"Per Sq. Foot/Month",0,null,null,null,null,null,null,null,null,null,null,null,null,null,null,null,null,null,null,null,null,null,null,false]
["10-7.","Conventional Soil Excavation and Loading ≤ 300 cubic yards ",null,"Per Cubic Yard",0,null,null,null,null,null,null,null,null,null,null,null,null,null,null,null,null,null,null,null,null,null,null,false]
["10-8.","Conventional Soil Excavation and Loading > 300 cubic yards",null,"Per Cubic Yard",0,null,null,null,null,null,null,null,null,null,null,null,null,null,null,null,null,null,null,null,null,null,null,false]
["10-9.","LDA Excavation and Loading Without Casing ≤ 300 cubic yards",null,"Per Cubic Yard",0,null,null,null,null,null,null,null,null,null,null,null,null,null,null,null,null,null,null,null,null,null,null,false]
["10-10.","LDA Excavation and Loading Without Casing > 300 cubic yards",null,"Per Cubic Yard",0,null,null,null,null,null,null,null,null,null,null,null,null,null,null,null,null,null,null,null,null,null,null,false]
["10-11.a.","LDA Excavation and Loading With Surface Casing ≤ 300 cubic yards",null,"Per Cubic Yard",0,null,null,null,null,null,null,null,null,null,null,null,null,null,null,null,null,null,null,null,null,null,null,false]
["10-11.b.","LDA Excavation and Loading With Driven Casing < 300 cubic yards",null,"Per Cubic Yard",0,null,null,null,null,null,null,null,null,null,null,null,null,null,null,null,null,null,null,null,null,null,null,false]
["10-12.a.","LDA Excavation and Loading With Surface Casing > 300 cubic yards",null,"Per Cubic Yard",0,null,null,null,null,null,null,null,null,null,null,null,null,null,null,null,null,null,null,null,null,null,null,false]
["10-12.b.","LDA Excavation and Loading With Driven Casing > 300 cubic yards",null,"Per Cubic Yard",0,null,null,null,null,null,null,null,null,null,null,null,null,null,null,null,null,null,null,null,null,null,null,false]
["10-13.","Flowable Fill Concrete and Installation",null,"Per Cubic Yard",0,null,null,null,null,null,null,null,null,null,null,null,null,null,null,null,null,null,null,null,null,null,null,false]
["10-14.","Clean Backfill Material, Compaction and Testing (includes transport) ≤ 300 cubic yards",null,"Per Cubic Yard",0,null,null,null,null,null,null,null,null,null,null,null,null,null,null,null,null,null,null,null,null,null,null,false]
["10-15.","Clean Backfill Material, Compaction and Testing (includes transport) > 300 cubic yards",null,"Per Cubic Yard",{"$f":"SUM(F228:O228)","v":0},null,null,null,null,null,null,null,null,null,null,null,null,null,null,null,null,null,null,null,null,null,null,false]
["10-15.a.","Clean Overburden Used As Backfill, Compaction and Testing ≤ 300 cubic yards",null,"Per Cubic Yard",{"$f":"SUM(F229:O229)","v":0},null,null,null,null,null,null,null,null,null,null,null,null,null,null,null,null,null,null,null,null,null,null,false]
["10-15.b.","Clean Overburden Used As Backfill, Compaction and Testing > 300 cubic yards",null,"Per Cubic Yard",{"$f":"SUM(F230:O230)","v":0},null,null,null,null,null,null,null,null,null,null,null,null,null,null,null,null,null,null,null,null,null,null,false]
["10-16.","Pea Gravel",null,"Per Ton",0,null,null,null,null,null,null,null,null,null,null,null,null,null,null,null,null,null,null,null,null,null,null,false]
["10-17.","#57 Stone",null,"Per Ton",0,null,null,null,null,null,null,null,null,null,null,null,null,null,null,null,null,null,null,null,null,null,null,false]
["10-18.","Dewatering System, up to 12 well points (includes installation)",null,"Per Day",0,null,null,null,null,null,null,null,null,null,null,null,null,null,null,null,null,null,null,null,null,null,null,false]
["10-19.","Additional Dewatering System Well Points (2) (includes installation)",null,"Per Day",0,null,null,null,null,null,null,null,null,null,null,null,null,null,null,null,null,null,null,null,null,null,null,false]
["10-20.","Dewatering System, up to 12 well points (includes installation)",null,"Per Week",0,null,null,null,null,null,null,null,null,null,null,null,null,null,null,null,null,null,null,null,null,null,null,false]
["10-21.","Additional Dewatering System Well Points (2) (includes installation)",null,"Per Week",0,null,null,null,null,null,null,null,null,null,null,null,null,null,null,null,null,null,null,null,null,null,null,false]
["10-22.","Dewatering System, up to 12 well points (includes installation)",null,"Per Month",0,null,null,null,null,null,null,null,null,null,null,null,null,null,null,null,null,null,null,null,null,null,null,false]
["10-23.","Additional Dewatering System Well Points (2) (includes installation)",null,"Per Month",0,null,null,null,null,null,null,null,null,null,null,null,null,null,null,null,null,null,null,null,null,null,null,false]
["11.","PETROLEUM STORAGE TANK REMOVAL AND DISPOSAL",null,null,null,null,null,null,null,null,null,null,null,null,null,null,null,null,null,null,null,null,null,null,null,null,null,{"$f":"IF(COUNTIF(AB240:AB243,TRUE)>0,TRUE,FALSE)","v":false}]
["11-1.","Remove and Dispose Petroleum Storage Tank - ≤ 1,000 gal. capacity",null,"Per Tank",0,null,null,null,null,null,null,null,null,null,null,null,null,null,null,null,null,null,null,null,null,null,null,{"$f":"IF((SUMPRODUCT((F240:Z240<>\"\")+0))>0,TRUE,FALSE)","v":false}]
["11-2.","Remove and Dispose Petroleum Storage Tank - > 1,000 to 5,000 gal. capacity",null,"Per Tank",0,null,null,null,null,null,null,null,null,null,null,null,null,null,null,null,null,null,null,null,null,null,null,{"$f":"IF((SUMPRODUCT((F241:Z241<>\"\")+0))>0,TRUE,FALSE)","v":false}]
["11-3.","Remove and Dispose Petroleum Storage Tank - > 5,000 to 10,000 gal. capacity",null,"Per Tank",0,null,null,null,null,null,null,null,null,null,null,null,null,null,null,null,null,null,null,null,null,null,null,{"$f":"IF((SUMPRODUCT((F242:Z242<>\"\")+0))>0,TRUE,FALSE)","v":false}]
["11-4.","Remove and Dispose Petroleum Storage Tank - > 10,000 gal. capacity",null,"Per Tank",0,null,null,null,null,null,null,null,null,null,null,null,null,null,null,null,null,null,null,null,null,null,null,{"$f":"IF((SUMPRODUCT((F243:Z243<>\"\")+0))>0,TRUE,FALSE)","v":false}]
["12.","DEBRIS, WASTE AND PRODUCT REMOVAL AND DISPOSAL ",null,null,null,null,null,null,null,null,null,null,null,null,null,null,null,null,null,null,null,null,null,null,null,null,null,{"$f":"IF(COUNTIF(AB245:AB262,TRUE)>0,TRUE,FALSE)","v":false}]
["12-1.","Removal and Loading of Asphalt and/or Concrete - up to 4 inch thickness",null,"Per Square Foot",0,null,null,null,null,null,null,null,null,null,null,null,null,null,null,null,null,null,null,null,null,null,null,{"$f":"IF((SUMPRODUCT((F245:Z245<>\"\")+0))>0,TRUE,FALSE)","v":false}]
["12-2.","Additional Removal/Loading Cost for Concrete - > 4 inch thickness ",null,"Per Square Foot",0,null,null,null,null,null,null,null,null,null,null,null,null,null,null,null,null,null,null,null,null,null,null,false]
["12-3.","Loading, Transport and Disposal/Recycle Clean Overburden ",null,"Per Ton",0,null,null,null,null,null,null,null,null,null,null,null,null,null,null,null,null,null,null,null,null,null,null,false]
["12-4.","Transport and Disposal of Clean Concrete ",null,"Per Ton",0,null,null,null,null,null,null,null,null,null,null,null,null,null,null,null,null,null,null,null,null,null,null,false]
["12-5.","Transport and Disposal of Mixed Debris  ",null,"Per Ton",0,null,null,null,null,null,null,null,null,null,null,null,null,null,null,null,null,null,null,null,null,null,null,false]
["12-6.","Transport and Disposal of Petroleum Impacted Soil (includes drum)",null,"Per Drum",0,null,null,null,null,null,null,null,null,null,null,null,null,null,null,null,null,null,null,null,null,null,null,false]
["12-7.","Transport Petroleum Impacted Soil (bulk) ≤ 100 miles",null,"Per Ton",0,null,null,null,null,null,null,null,null,null,null,null,null,null,null,null,null,null,null,null,null,null,null,false]
["12-8.","Transport Petroleum Impacted Soil (bulk) > 100 miles",null,"Per Ton",0,null,null,null,null,null,null,null,null,null,null,null,null,null,null,null,null,null,null,null,null,null,null,false]
["12-9.","Disposal of Petroleum Impacted Soil at a Landfill (bulk) ≤ 450 tons",null,"Per Ton",0,null,null,null,null,null,null,null,null,null,null,null,null,null,null,null,null,null,null,null,null,null,null,false]
["12-10.","Disposal of Petroleum Impacted Soil at a Landfill (bulk) > 450 tons",null,"Per Ton",0,null,null,null,null,null,null,null,null,null,null,null,null,null,null,null,null,null,null,null,null,null,null,false]
["12-11.","Disposal of Petroleum Impacted Soil at a Thermal Treatment Facility (bulk) ≤ 450 tons",null,"Per Ton",0,null,null,null,null,null,null,null,null,null,null,null,null,null,null,null,null,null,null,null,null,null,null,false]
["12-12.","Disposal of Petroleum Impacted Soil at a Thermal Treatment Facility (bulk) > 450 tons",null,"Per Ton",0,null,null,null,null,null,null,null,null,null,null,null,null,null,null,null,null,null,null,null,null,null,null,false]
["12-13.","Transport and Disposal of Petroleum Contact Water (includes drum)",null,"Per Drum",0,null,null,null,null,null,null,null,null,null,null,null,null,null,null,null,null,null,null,null,null,null,null,false]
["12-14.","Transport and Disposal of Petroleum Contact Water (bulk)",null,"Per Gallon",0,null,null,null,null,null,null,null,null,null,null,null,null,null,null,null,null,null,null,null,null,null,null,false]
["12-15.","Transport and Disposal of Petroleum Product (includes drum)",null,"Per Drum",0,null,null,null,null,null,null,null,null,null,null,null,null,null,null,null,null,null,null,null,null,null,null,false]
["12-16.","Transport and Disposal of Petroleum Product (bulk)",null,"Per Gallon",0,null,null,null,null,null,null,null,null,null,null,null,null,null,null,null,null,null,null,null,null,null,null,false]
["12-17.","Delivery, Pick Up and Rental of 20 Cubic Yard Roll-Off Container",null,"Per Week",{"$f":"SUM(F261:O261)","v":0},null,null,null,null,null,null,null,null,null,null,null,null,null,null,null,null,null,null,null,null,null,null,false]
["12-18.","Additional Rental of 20 Cubic Yard Roll-Off Container",null,"Per Week",{"$f":"SUM(F262:O262)","v":0},null,null,null,null,null,null,null,null,null,null,null,null,null,null,null,null,null,null,null,null,null,null,false]
["13.","RESURFACING",null,null,null,null,null,null,null,null,null,null,null,null,null,null,null,null,null,null,null,null,null,null,null,null,null,{"$f":"IF(COUNTIF(AB264:AB270,TRUE)>0,TRUE,FALSE)","v":false}]
["13-1.","Asphalt Paving - 2 inch thickness (includes sub-base)",null,"Per Square Foot",0,null,null,null,null,null,null,null,null,null,null,null,null,null,null,null,null,null,null,null,null,null,null,{"$f":"IF((SUMPRODUCT((F264:Z264<>\"\")+0))>0,TRUE,FALSE)","v":false}]
["13-2.","Asphalt Paving - additional 1 inch thickness ",null,"Per Square Foot",0,null,null,null,null,null,null,null,null,null,null,null,null,null,null,null,null,null,null,null,null,null,null,false]
["13-3.","Concrete Paving - 4 inch thickness (includes sub-base)",null,"Per Square Foot",0,null,null,null,null,null,null,null,null,null,null,null,null,null,null,null,null,null,null,null,null,null,null,false]
["13-4.","Concrete Paving - additional 1 inch thickness ",null,"Per Square Foot",0,null,null,null,null,null,null,null,null,null,null,null,null,null,null,null,null,null,null,null,null,null,null,false]
["13-5.","Crushed Lime Rock Cover - 2 inch thickness",null,"Per Square Foot",0,null,null,null,null,null,null,null,null,null,null,null,null,null,null,null,null,null,null,null,null,null,null,false]
["13-6.","Grass - Sod",null,"Per Square Foot",0,null,null,null,null,null,null,null,null,null,null,null,null,null,null,null,null,null,null,null,null,null,null,false]
["13-7.","Grass - Seed and Mulch ",null,"Per Square Foot",0,null,null,null,null,null,null,null,null,null,null,null,null,null,null,null,null,null,null,null,null,null,null,false]
["14.","IN-SITU INJECTION",null,null,null,null,null,null,null,null,null,null,null,null,null,null,null,null,null,null,null,null,null,null,null,null,null,{"$f":"IF(COUNTIF(AB272:AB276,TRUE)>0,TRUE,FALSE)","v":false}]
["14-1.a.","Direct Push Boring with In-Situ Injection",null,"Per Day",0,null,null,null,null,null,null,null,null,null,null,null,null,null,null,null,null,null,null,null,null,null,null,{"$f":"IF((SUMPRODUCT((F272:Z272<>\"\")+0))>0,TRUE,FALSE)","v":false}]
["14-2.a.","In-Situ Injection Into Existing Well/Treatment Point",null,"Per Day",0,null,null,null,null,null,null,null,null,null,null,null,null,null,null,null,null,null,null,null,null,null,null,{"$f":"IF((SUMPRODUCT((F273:Z273<>\"\")+0))>0,TRUE,FALSE)","v":false}]
["14-3.","Materials to be Injected",null,"Reimbursable*",0,null,null,null,null,null,null,null,null,null,null,null,null,null,null,null,null,null,null,null,null,null,null,{"$f":"IF((SUMPRODUCT((F274:Z274<>\"\")+0))>0,TRUE,FALSE)","v":false}]
["14-4.","Groundwater Injection System (not by direct push)",null,"Per Week",{"$f":"SUM(F275:O275)","v":0},null,null,null,null,null,null,null,null,null,null,null,null,null,null,null,null,null,null,null,null,null,null,{"$f":"IF((SUMPRODUCT((F275:Z275<>\"\")+0))>0,TRUE,FALSE)","v":false}]
["14-5.","Groundwater Injection System (not by direct push)",null,"Per Month",{"$f":"SUM(F276:O276)","v":0},null,null,null,null,null,null,null,null,null,null,null,null,null,null,null,null,null,null,null,null,null,null,{"$f":"IF((SUMPRODUCT((F276:Z276<>\"\")+0))>0,TRUE,FALSE)","v":false}]
["15.","REMEDIAL ACTION CONSTRUCTION",null,null,null,null,null,null,null,null,null,null,null,null,null,null,null,null,null,null,null,null,null,null,null,null,null,{"$f":"IF(OR(AB278,AB287)=TRUE,TRUE,FALSE)","v":false}]
["15.A.","TRENCHING",null,null,null,null,null,null,null,null,null,null,null,null,null,null,null,null,null,null,null,null,null,null,null,null,null,{"$f":"IF(COUNTIF(AB279:AB286,TRUE)>0,TRUE,FALSE)","v":false}]
["15-1.a.","Trenching and Installation of 1-10 Plumbing (and Electrical) Lines in Trench",null,"Per Linear Foot of Trench",{"$f":"SUM(F279:O279)","v":0},null,null,null,null,null,null,null,null,null,null,null,null,null,null,null,null,null,null,null,null,null,null,{"$f":"IF((SUMPRODUCT((F279:Z279<>\"\")+0))>0,TRUE,FALSE)","v":false}]
["15-1.b.","Trenching and Installation of 11 - 20  Lines",null,"Per Linear Foot of Trench",{"$f":"SUM(F280:O280)","v":0},null,null,null,null,null,null,null,null,null,null,null,null,null,null,null,null,null,null,null,null,null,null,false]
["15-1.c.","Trenching and Installation of 21 - 30 Lines",null,"Per Linear Foot of Trench",{"$f":"SUM(F281:O281)","v":0},null,null,null,null,null,null,null,null,null,null,null,null,null,null,null,null,null,null,null,null,null,null,false]
["15-1.d.","Trenching and Installation of Additional 1-10 Lines Greater Than 30 Lines",null,"Per Linear Foot of Trench",{"$f":"SUM(F282:O282)","v":0},null,null,null,null,null,null,null,null,null,null,null,null,null,null,null,null,null,null,null,null,null,null,false]
["15-2.a.","Installation of Plumbing (and Electrical) Lines Above Ground:  Per Linear Foot of Piping.  Electrical lines are not counted in determination of costs.",null,"Per Foot",{"$f":"SUM(F283:O283)","v":0},null,null,null,null,null,null,null,null,null,null,null,null,null,null,null,null,null,null,null,null,null,null,false]
["15-3.","Plumbing and Electrical Materials/Equipment Installed in Trench (If FDEP authorizes, submit quote(s) with Change Order)",null,"Reimbursable*",0,null,null,null,null,null,null,null,null,null,null,null,null,null,null,null,null,null,null,null,null,null,null,false]
["15-3.a.","Traffic Bearing Trench Plates (materials)",null,"Reimbursable*",{"$f":"SUM(F285:O285)","v":0},null,null,null,null,null,null,null,null,null,null,null,null,null,null,null,null,null,null,null,null,null,null,false]
["15-3.b.","Infiltration Gallery Installation",null,"Reimbursable*",{"$f":"SUM(F286:O286)","v":0},null,null,null,null,null,null,null,null,null,null,null,null,null,null,null,null,null,null,null,null,null,null,false]
["15.B.","REMEDIATION SYSTEM INTEGRATION AND STARTUP",null,null,null,null,null,null,null,null,null,null,null,null,null,null,null,null,null,null,null,null,null,null,null,null,null,{"$f":"IF(COUNTIF(AB288:AB296,TRUE)>0,TRUE,FALSE)","v":false}]
["15-4.a.","System Installation/Integration/Startup - 1 Technology Component - 1-10 Recovery/Treatment Points",null,"Per Startup",{"$f":"SUM(F288:O288)","v":0},null,null,null,null,null,null,null,null,null,null,null,null,null,null,null,null,null,null,null,null,null,null,{"$f":"IF((SUMPRODUCT((F288:Z288<>\"\")+0))>0,TRUE,FALSE)","v":false}]
["15-4.b.","System Installation/Integration/Startup - 1 Technology Component - 11-20 Recovery/Treatment Points",null,"Per Startup",{"$f":"SUM(F289:O289)","v":0},null,null,null,null,null,null,null,null,null,null,null,null,null,null,null,null,null,null,null,null,null,null,false]
["15-4.c.","System Installation/Integration/Startup - 1 Technology Component - 21-30 Recovery/Treatment Points",null,"Per Startup",{"$f":"SUM(F290:O290)","v":0},null,null,null,null,null,null,null,null,null,null,null,null,null,null,null,null,null,null,null,null,null,null,false]
["15-4.d.","System Installation/Integration/Startup - 1 Technology Component - 1-10 Additional Recovery/Treatment Points greater Than 30 (This tem is used in conjunction with 15.4.c when needed)",null,"Per Startup",{"$f":"SUM(F291:O291)","v":0},null,null,null,null,null,null,null,null,null,null,null,null,null,null,null,null,null,null,null,null,null,null,false]
["15-5.","System Installation/Integration/Startup – Addition of 1 Technology Component",null,"Per Additional Tech Component",0,null,null,null,null,null,null,null,null,null,null,null,null,null,null,null,null,null,null,null,null,null,null,false]
["15-7.","Compound Construction/Fencing (materials)",null,"Reimbursable*",{"$f":"SUM(F293:O293)","v":0},null,null,null,null,null,null,null,null,null,null,null,null,null,null,null,null,null,null,null,null,null,null,false]
["15-8.","Utility Drop",null,"Reimbursable*",{"$f":"SUM(F294:O294)","v":0},null,null,null,null,null,null,null,null,null,null,null,null,null,null,null,null,null,null,null,null,null,null,false]
["15-9.","Utility Connection",null,"Reimbursable*",{"$f":"SUM(F295:O295)","v":0},null,null,null,null,null,null,null,null,null,null,null,null,null,null,null,null,null,null,null,null,null,null,false]
["15-10.","Utility Disconnect",null,"Reimbursable*",{"$f":"SUM(F296:O296)","v":0},null,null,null,null,null,null,null,null,null,null,null,null,null,null,null,null,null,null,null,null,null,null,false]
["16.","REMEDIAL ACTION - PACKAGED WORK SCOPES\n(Including Remediation System Equipment)",null,null,null,null,null,null,null,null,null,null,null,null,null,null,null,null,null,null,null,null,null,null,null,null,null,{"$f":"IF(OR(AB298,AB313)=TRUE,TRUE,FALSE)","v":false}]
["16.A.","PILOT TEST PACKAGES (Including Remediation System Equipment)",null,null,null,null,null,null,null,null,null,null,null,null,null,null,null,null,null,null,null,null,null,null,null,null,null,{"$f":"IF(COUNTIF(AB299:AB312,TRUE)>0,TRUE,FALSE)","v":false}]
["16-1.","Groundwater Recovery System Pilot Test - 8 hours ",null,"Per Test",0,null,null,null,null,null,null,null,null,null,null,null,null,null,null,null,null,null,null,null,null,null,null,{"$f":"IF((SUMPRODUCT((F299:Z299<>\"\")+0))>0,TRUE,FALSE)","v":false}]
["16-2.","Groundwater Recovery System Pilot Test - Additional Time  ",null,"Per 2 Hrs ",0,null,null,null,null,null,null,null,null,null,null,null,null,null,null,null,null,null,null,null,null,null,null,false]
["16-3.","Air Sparging or Biosparging Pilot Test - 8 hours",null,"Per Test",0,null,null,null,null,null,null,null,null,null,null,null,null,null,null,null,null,null,null,null,null,null,null,false]
["16-4.","Air Sparging or Biosparging Pilot Test - Additional Time",null,"Per 2 Hrs ",0,null,null,null,null,null,null,null,null,null,null,null,null,null,null,null,null,null,null,null,null,null,null,false]
["16-5.","Vapor Extraction Pilot Test - 8 hours",null,"Per Test",0,null,null,null,null,null,null,null,null,null,null,null,null,null,null,null,null,null,null,null,null,null,null,false]
["16-6.","Vapor Extraction Pilot Test - Additional Time",null,"Per 2 Hrs ",0,null,null,null,null,null,null,null,null,null,null,null,null,null,null,null,null,null,null,null,null,null,null,false]
["16-7.","Vapor Extraction/Aquifer Pumping Test - 8 hours  ",null,"Per Test",0,null,null,null,null,null,null,null,null,null,null,null,null,null,null,null,null,null,null,null,null,null,null,false]
["16-8.","Vapor Extraction/Aquifer Pumping Test - Additional Time  ",null,"Per 2 Hrs ",0,null,null,null,null,null,null,null,null,null,null,null,null,null,null,null,null,null,null,null,null,null,null,false]
["16-9.","Air Sparging/Vapor Extraction Pilot Test - 8 hours",null,"Per Test",0,null,null,null,null,null,null,null,null,null,null,null,null,null,null,null,null,null,null,null,null,null,null,false]
["16-10.","Air Sparging/Vapor Extraction Pilot Test - Additional Time",null,"Per 2 Hrs ",0,null,null,null,null,null,null,null,null,null,null,null,null,null,null,null,null,null,null,null,null,null,null,false]
["16-11.","Multi-Phase Pilot Test - 8 hours",null,"Per Test",{"$f":"SUM(F309:O309)","v":0},null,null,null,null,null,null,null,null,null,null,null,null,null,null,null,null,null,null,null,null,null,null,false]
["16-12.","Multi-Phase Pilot Test - Additional Time",null,"Per 2 Hrs ",0,null,null,null,null,null,null,null,null,null,null,null,null,null,null,null,null,null,null,null,null,null,null,false]
["16-13.","Air Sparging/Multiphase Extraction Pilot Test - 8 hours",null,"Per Test",{"$f":"SUM(F311:O311)","v":0},null,null,null,null,null,null,null,null,null,null,null,null,null,null,null,null,null,null,null,null,null,null,false]
["16-14.","Air Sparging/Multiphase Extraction Pilot Test - Additional Time",null,"Per 2 Hours",{"$f":"SUM(F312:O312)","v":0},null,null,null,null,null,null,null,null,null,null,null,null,null,null,null,null,null,null,null,null,null,null,false]
["16.B.","SHORT TERM/EPISODIC SYSTEM OPERATION PACKAGES\n(Including Remediation System Equipment)",null,null,null,null,null,null,null,null,null,null,null,null,null,null,null,null,null,null,null,null,null,null,null,null,null,{"$f":"IF(COUNTIF(AB314:AB325,TRUE)>0,TRUE,FALSE)","v":false}]
["16-17.","Groundwater Treatment System Package - Medium",null,"Per Day",0,null,null,null,null,null,null,null,null,null,null,null,null,null,null,null,null,null,null,null,null,null,null,{"$f":"IF((SUMPRODUCT((F314:Z314<>\"\")+0))>0,TRUE,FALSE)","v":false}]
["16-18.","Groundwater Treatment System Package - Medium",null,"Per Week",0,null,null,null,null,null,null,null,null,null,null,null,null,null,null,null,null,null,null,null,null,null,null,false]
["16-19.","Air Sparge System Package - Medium",null,"Per Day",0,null,null,null,null,null,null,null,null,null,null,null,null,null,null,null,null,null,null,null,null,null,null,false]
["16-20.","Air Sparge System Package - Medium",null,"Per Week",0,null,null,null,null,null,null,null,null,null,null,null,null,null,null,null,null,null,null,null,null,null,null,false]
["16-21.","AS/SVE System Package - Medium ",null,"Per Day",0,null,null,null,null,null,null,null,null,null,null,null,null,null,null,null,null,null,null,null,null,null,null,false]
["16-22.","AS/SVE System Package - Medium ",null,"Per Week",0,null,null,null,null,null,null,null,null,null,null,null,null,null,null,null,null,null,null,null,null,null,null,false]
["16-23.","MPE System Package - Medium ",null,"Per Day",0,null,null,null,null,null,null,null,null,null,null,null,null,null,null,null,null,null,null,null,null,null,null,false]
["16-24.","MPE System Package - Medium",null,"Per Week",0,null,null,null,null,null,null,null,null,null,null,null,null,null,null,null,null,null,null,null,null,null,null,false]
["16-25.","AS/MPE System Package - Medium",null,"Per Day",{"$f":"SUM(F322:O322)","v":0},null,null,null,null,null,null,null,null,null,null,null,null,null,null,null,null,null,null,null,null,null,null,false]
["16-26.","AS/MPE System Package - Medium",null,"Per Week",{"$f":"SUM(F323:O323)","v":0},null,null,null,null,null,null,null,null,null,null,null,null,null,null,null,null,null,null,null,null,null,null,false]
["16-27.","SVE System Package - Medium",null,"Per Day",{"$f":"SUM(F324:O324)","v":0},null,null,null,null,null,null,null,null,null,null,null,null,null,null,null,null,null,null,null,null,null,null,false]
["16-28.","SVE System Package - Medium",null,"Per Week",{"$f":"SUM(F325:O325)","v":0},null,null,null,null,null,null,null,null,null,null,null,null,null,null,null,null,null,null,null,null,null,null,false]
["17.","MONTHLY REMEDIATION SYSTEM O&M PACKAGED WORK SCOPES\n(Excluding Remediation System Equipment)",null,null,null,null,null,null,null,null,null,null,null,null,null,null,null,null,null,null,null,null,null,null,null,null,null,{"$f":"IF(COUNTIF(AB327:AB331,TRUE)>0,TRUE,FALSE)","v":false}]
["17-1.","System O&M Package - Small ",null,"Per Month",0,null,null,null,null,null,null,null,null,null,null,null,null,null,null,null,null,null,null,null,null,null,null,{"$f":"IF((SUMPRODUCT((F327:Z327<>\"\")+0))>0,TRUE,FALSE)","v":false}]
["17-2.","System O&M Package - Medium",null,"Per Month",0,null,null,null,null,null,null,null,null,null,null,null,null,null,null,null,null,null,null,null,null,null,null,{"$f":"IF((SUMPRODUCT((F328:Z328<>\"\")+0))>0,TRUE,FALSE)","v":false}]
["17-3.","System O&M Package - Large ",null,"Per Month",0,null,null,null,null,null,null,null,null,null,null,null,null,null,null,null,null,null,null,null,null,null,null,{"$f":"IF((SUMPRODUCT((F329:Z329<>\"\")+0))>0,TRUE,FALSE)","v":false}]
["17-4.","System O&M Package - Extra Large ",null,"Per Month",0,null,null,null,null,null,null,null,null,null,null,null,null,null,null,null,null,null,null,null,null,null,null,{"$f":"IF((SUMPRODUCT((F330:Z330<>\"\")+0))>0,TRUE,FALSE)","v":false}]
["17-5.","Supplemental System O&M Package - Add Thermox or Catox Treatment",null,"Per Month",0,null,null,null,null,null,null,null,null,null,null,null,null,null,null,null,null,null,null,null,null,null,null,{"$f":"IF((SUMPRODUCT((F331:Z331<>\"\")+0))>0,TRUE,FALSE)","v":false}]
["18.","REMEDIAL ACTION SYSTEM/EQUIPMENT USE (Equipment Only, Excluding O&M)",null,null,null,null,null,null,null,null,null,null,null,null,null,null,null,null,null,null,null,null,null,null,null,null,null,{"$f":"IF(COUNTIF(AB333:AB390,TRUE)>0,TRUE,FALSE)","v":false}]
["18-1.","Medium Holding Tank - 2,000 to 6,000 gal. capacity - Short Term ≤ 6 mos.",null,"Per Month",0,null,null,null,null,null,null,null,null,null,null,null,null,null,null,null,null,null,null,null,null,null,null,{"$f":"IF((SUMPRODUCT((F333:Z333<>\"\")+0))>0,TRUE,FALSE)","v":false}]
["18-2.","Medium Holding Tank - 2,000 to 6,000 gal. capacity - Long Term > 6 mos.",null,"Per Month",0,null,null,null,null,null,null,null,null,null,null,null,null,null,null,null,null,null,null,null,null,null,null,false]
["18-3.","Large Holding Tank > 6,000 to 10,000 gal. capacity - Short Term ≤ 6 mos.",null,"Per Month",0,null,null,null,null,null,null,null,null,null,null,null,null,null,null,null,null,null,null,null,null,null,null,false]
["18-4.","Large Holding Tank > 6,000 to 10,000 gal. capacity - Long Term > 6 mos.",null,"Per Month",0,null,null,null,null,null,null,null,null,null,null,null,null,null,null,null,null,null,null,null,null,null,null,false]
["18-5.","Groundwater Treatment System - Stand Alone Small - Short Term ≤ 6 mos.",null,"Per Month",0,null,null,null,null,null,null,null,null,null,null,null,null,null,null,null,null,null,null,null,null,null,null,false]
["18-6.","Groundwater Treatment System - Stand Alone Small - Long Term > 6 mos.",null,"Per Month",0,null,null,null,null,null,null,null,null,null,null,null,null,null,null,null,null,null,null,null,null,null,null,false]
["18-7.","Groundwater Treatment System - Stand Alone Medium - Short Term ≤ 6 mos.",null,"Per Month",0,null,null,null,null,null,null,null,null,null,null,null,null,null,null,null,null,null,null,null,null,null,null,false]
["18-8.","Groundwater Treatment System - Stand Alone Medium - Long Term > 6 mos.",null,"Per Month",0,null,null,null,null,null,null,null,null,null,null,null,null,null,null,null,null,null,null,null,null,null,null,false]
["18-9.","Groundwater Treatment System - Stand Alone Large - Short Term ≤ 6 mos.",null,"Per Month",0,null,null,null,null,null,null,null,null,null,null,null,null,null,null,null,null,null,null,null,null,null,null,false]
["18-10.","Groundwater Treatment System - Stand Alone Large - Long Term > 6 mos.",null,"Per Month",0,null,null,null,null,null,null,null,null,null,null,null,null,null,null,null,null,null,null,null,null,null,null,false]
["18-11.","Air Sparge System - Small - Short Term ≤ 6 mos.",null,"Per Month",0,null,null,null,null,null,null,null,null,null,null,null,null,null,null,null,null,null,null,null,null,null,null,false]
["18-12.","Air Sparge System - Small - Long Term > 6 mos.",null,"Per Month",0,null,null,null,null,null,null,null,null,null,null,null,null,null,null,null,null,null,null,null,null,null,null,false]
["18-13.","Air Sparge System - Medium - Short Term ≤ 6 mos.",null,"Per Month",0,null,null,null,null,null,null,null,null,null,null,null,null,null,null,null,null,null,null,null,null,null,null,false]
["18-14.","Air Sparge System - Medium - Long Term > 6 mos.",null,"Per Month",0,null,null,null,null,null,null,null,null,null,null,null,null,null,null,null,null,null,null,null,null,null,null,false]
["18-15.","Air Sparge System - Large - Short Term ≤ 6 mos.",null,"Per Month",0,null,null,null,null,null,null,null,null,null,null,null,null,null,null,null,null,null,null,null,null,null,null,false]
["18-16.","Air Sparge System - Large - Long Term > 6 mos.",null,"Per Month",0,null,null,null,null,null,null,null,null,null,null,null,null,null,null,null,null,null,null,null,null,null,null,false]
["18-17.","AS/SVE System - Small - Short Term ≤ 6 mos.",null,"Per Month",0,null,null,null,null,null,null,null,null,null,null,null,null,null,null,null,null,null,null,null,null,null,null,false]
["18-18.","AS/SVE System - Small - Long Term > 6 mos.",null,"Per Month",0,null,null,null,null,null,null,null,null,null,null,null,null,null,null,null,null,null,null,null,null,null,null,false]
["18-19.","AS/SVE System - Medium - Short Term ≤ 6 mos.",null,"Per Month",0,null,null,null,null,null,null,null,null,null,null,null,null,null,null,null,null,null,null,null,null,null,null,false]
["18-20.","AS/SVE System - Medium - Long Term > 6 mos.",null,"Per Month",0,null,null,null,null,null,null,null,null,null,null,null,null,null,null,null,null,null,null,null,null,null,null,false]
["18-21.","AS/SVE System - Large - Short Term ≤ 6 mos.",null,"Per Month",0,null,null,null,null,null,null,null,null,null,null,null,null,null,null,null,null,null,null,null,null,null,null,false]
["18-22.","AS/SVE System - Large - Long Term > 6 mos.",null,"Per Month",0,null,null,null,null,null,null,null,null,null,null,null,null,null,null,null,null,null,null,null,null,null,null,false]
["18-23.","MPE System - Small - Short Term ≤ 6 mos.",null,"Per Month",0,null,null,null,null,null,null,null,null,null,null,null,null,null,null,null,null,null,null,null,null,null,null,false]
["18-24.","MPE System - Small - Long Term > 6 mos.",null,"Per Month",0,null,null,null,null,null,null,null,null,null,null,null,null,null,null,null,null,null,null,null,null,null,null,false]
["18-25.","MPE System - Medium - Short Term ≤ 6 mos.",null,"Per Month",0,null,null,null,null,null,null,null,null,null,null,null,null,null,null,null,null,null,null,null,null,null,null,false]
["18-26.","MPE System - Medium - Long Term > 6 mos.",null,"Per Month",0,null,null,null,null,null,null,null,null,null,null,null,null,null,null,null,null,null,null,null,null,null,null,false]
["18-27.","MPE System - Large - Short Term ≤ 6 mos.",null,"Per Month",0,null,null,null,null,null,null,null,null,null,null,null,null,null,null,null,null,null,null,null,null,null,null,false]
["18-28.","MPE System - Large - Long Term > 6 mos.",null,"Per Month",0,null,null,null,null,null,null,null,null,null,null,null,null,null,null,null,null,null,null,null,null,null,null,false]
["18-29.","Groundwater Treatment - Add On - Small - Short Term ≤ 6 mos.",null,"Per Month",0,null,null,null,null,null,null,null,null,null,null,null,null,null,null,null,null,null,null,null,null,null,null,false]
["18-30.","Groundwater Treatment - Add On - Medium - Short Term ≤ 6 mos.",null,"Per Month",0,null,null,null,null,null,null,null,null,null,null,null,null,null,null,null,null,null,null,null,null,null,null,false]
["18-31.","Groundwater Treatment - Add On - Large - Short Term ≤ 6 mos.",null,"Per Month",0,null,null,null,null,null,null,null,null,null,null,null,null,null,null,null,null,null,null,null,null,null,null,false]
["18-32.","Groundwater Treatment - Add On - Small - Long Term > 6 mos.",null,"Per Month",0,null,null,null,null,null,null,null,null,null,null,null,null,null,null,null,null,null,null,null,null,null,null,false]
["18-33.","Groundwater Treatment - Add On - Medium - Long Term > 6 mos.",null,"Per Month",0,null,null,null,null,null,null,null,null,null,null,null,null,null,null,null,null,null,null,null,null,null,null,{"$f":"IF((SUMPRODUCT((F365:Z365<>\"\")+0))>0,TRUE,FALSE)","v":false}]
["18-34.","Groundwater Treatment - Add On - Large - Long Term > 6 mos.",null,"Per Month",0,null,null,null,null,null,null,null,null,null,null,null,null,null,null,null,null,null,null,null,null,null,null,false]
["18-35.","Carbon Off Gas Treatment - Add On - Small - Short Term ≤ 6 mos.",null,"Per Month",0,null,null,null,null,null,null,null,null,null,null,null,null,null,null,null,null,null,null,null,null,null,null,false]
["18-36.","Carbon Off Gas Treatment - Add On - Medium - Short Term ≤ 6 mos.",null,"Per Month",0,null,null,null,null,null,null,null,null,null,null,null,null,null,null,null,null,null,null,null,null,null,null,false]
["18-37.","Carbon Off Gas Treatment - Add On - Large - Short Term ≤ 6 mos.",null,"Per Month",0,null,null,null,null,null,null,null,null,null,null,null,null,null,null,null,null,null,null,null,null,null,null,false]
["18-38.","Carbon Off Gas Treatment - Add On - Small- Long Term > 6 mos.",null,"Per Month",0,null,null,null,null,null,null,null,null,null,null,null,null,null,null,null,null,null,null,null,null,null,null,false]
["18-39.","Carbon Off Gas Treatment - Add On - Medium - Long Term > 6 mos.",null,"Per Month",0,null,null,null,null,null,null,null,null,null,null,null,null,null,null,null,null,null,null,null,null,null,null,false]
["18-40.","Carbon Off Gas Treatment - Add On - Large - Long Term > 6 mos. ",null,"Per Month",0,null,null,null,null,null,null,null,null,null,null,null,null,null,null,null,null,null,null,null,null,null,null,false]
["18-41.","Thermox/Catox Off Gas Treatment - Add On - Small - Short Term ≤ 6 mos.",null,"Per Month",0,null,null,null,null,null,null,null,null,null,null,null,null,null,null,null,null,null,null,null,null,null,null,false]
["18-42.","Thermox/Catox Off Gas Treatment - Add On - Medium - Short Term ≤ 6 mos.",null,"Per Month",0,null,null,null,null,null,null,null,null,null,null,null,null,null,null,null,null,null,null,null,null,null,null,false]
["18-43.","Thermox/Catox Off Gas Treatment - Add On - Large - Short Term ≤ 6 mos.",null,"Per Month",0,null,null,null,null,null,null,null,null,null,null,null,null,null,null,null,null,null,null,null,null,null,null,false]
["18-44.","Thermox/Catox Off Gas Treatment - Add On - Small - Long Term > 6 mos. ",null,"Per Month",0,null,null,null,null,null,null,null,null,null,null,null,null,null,null,null,null,null,null,null,null,null,null,false]
["18-45.","Thermox/Catox Off Gas Treatment - Add On - Medium - Long Term > 6 mos. ",null,"Per Month",0,null,null,null,null,null,null,null,null,null,null,null,null,null,null,null,null,null,null,null,null,null,null,false]
["18-46.","Thermox/Catox Off Gas Treatment - Add On - Large - Long Term > 6 mos. ",null,"Per Month",0,null,null,null,null,null,null,null,null,null,null,null,null,null,null,null,null,null,null,null,null,null,null,false]
["18-47.","Soil Vapor Extraction (SVE) System - Small - Short Term ≤ 6 Months",null,"Per Month",{"$f":"SUM(F379:O379)","v":0},null,null,null,null,null,null,null,null,null,null,null,null,null,null,null,null,null,null,null,null,null,null,false]
["18.48.","Soil Vapor Extraction (SVE) System - Small - Long Term > 6 Months",null,"Per Month",0,null,null,null,null,null,null,null,null,null,null,null,null,null,null,null,null,null,null,null,null,null,null,false]
["18-49.","Soil Vapor Extraction (SVE) System - Medium - Short Term ≤ 6 Months",null,"Per Month",0,null,null,null,null,null,null,null,null,null,null,null,null,null,null,null,null,null,null,null,null,null,null,false]
["18-50.","Soil Vapor Extraction (SVE) System - Medium - Long Term > 6 Months",null,"Per Month",0,null,null,null,null,null,null,null,null,null,null,null,null,null,null,null,null,null,null,null,null,null,null,false]
["18-51.","Soil Vapor Extraction (SVE) System - Large - Short Term ≤ 6 Months",null,"Per Month",0,null,null,null,null,null,null,null,null,null,null,null,null,null,null,null,null,null,null,null,null,null,null,false]
["18-52.","Soil Vapor Extraction (SVE) System - Large - Long Term > 6 Months",null,"Per Month",0,null,null,null,null,null,null,null,null,null,null,null,null,null,null,null,null,null,null,null,null,null,null,false]
["18-53.","Air Sparge/Multphase Extraction (AS/MPE) System - Small - Short Term ≤ 6 Months",null,"Per Month",0,null,null,null,null,null,null,null,null,null,null,null,null,null,null,null,null,null,null,null,null,null,null,false]
["18-54.","Air Sparge/Multphase Extraction (AS/MPE) System - Small - Long Term > 6 Months",null,"Per Month",0,null,null,null,null,null,null,null,null,null,null,null,null,null,null,null,null,null,null,null,null,null,null,false]
["18-55.","Air Sparge/Multphase Extraction (AS/MPE) System - Medium - Short Term ≤ 6 Months",null,"Per Month",0,null,null,null,null,null,null,null,null,null,null,null,null,null,null,null,null,null,null,null,null,null,null,false]
["18-56.","Air Sparge/Multphase Extraction (AS/MPE) System - Medium - Long Term > 6 Months",null,"Per Month",0,null,null,null,null,null,null,null,null,null,null,null,null,null,null,null,null,null,null,null,null,null,null,false]
["18-57.","Air Sparge/Multphase Extraction (AS/MPE) System - Large - Short Term ≤ 6 Months",null,"Per Month",0,null,null,null,null,null,null,null,null,null,null,null,null,null,null,null,null,null,null,null,null,null,null,false]
["18-58.","Air Sparge/Multphase Extraction (AS/MPE) System - Large - Long Term > 6 Months",null,"Per Month",0,null,null,null,null,null,null,null,null,null,null,null,null,null,null,null,null,null,null,null,null,null,null,false]
["19.","REPORTS (Excluding Professional Engineering and Professional Geology Services)",null,null,null,null,null,null,null,null,null,null,null,null,null,null,null,null,null,null,null,null,null,null,null,null,null,{"$f":"IF(COUNTIF(AB392:AB417,TRUE)>0,TRUE,FALSE)","v":false}]
["19-1.","Soil Source Removal Report",null,"Per Report",{"$f":"SUM(F392:O392)","v":0},null,null,null,null,null,null,null,null,null,null,null,null,null,null,null,null,null,null,null,null,null,null,{"$f":"IF((SUMPRODUCT((F392:Z392<>\"\")+0))>0,TRUE,FALSE)","v":false}]
["19-3.","General Site Assessment Report",null,"Per Report",0,null,null,null,null,null,null,null,null,null,null,null,null,null,null,null,null,null,null,null,null,null,null,false]
["19-4.","Supplemental Site Assessment Report",null,"Per Report",0,null,null,null,null,null,null,null,null,null,null,null,null,null,null,null,null,null,null,null,null,null,null,false]
["19-5.","Receptor and Exposure Pathway Report",null,"Per Report",0,null,null,null,null,null,null,null,null,null,null,null,null,null,null,null,null,null,null,null,null,null,null,false]
["19-6.","Level 2 Natural Attenuation Monitoring Plan",null,"Per Plan",0,null,null,null,null,null,null,null,null,null,null,null,null,null,null,null,null,null,null,null,null,null,null,false]
["19-7.","Natural Attenuation or Post RA Monitoring Report, Quarterly or Non-Annual ",null,"Per Report",0,null,null,null,null,null,null,null,null,null,null,null,null,null,null,null,null,null,null,null,null,null,null,false]
["19-8.","Natural Attenuation or Post RA Monitoring Report, Annual ",null,"Per Report",0,null,null,null,null,null,null,null,null,null,null,null,null,null,null,null,null,null,null,null,null,null,null,false]
["19-9.","Pilot Test Plan",null,"Per Plan",0,null,null,null,null,null,null,null,null,null,null,null,null,null,null,null,null,null,null,null,null,null,null,false]
["19-10.","Pilot Test Report",null,"Per Report",0,null,null,null,null,null,null,null,null,null,null,null,null,null,null,null,null,null,null,null,null,null,null,false]
["19-11.","Level 1 Remedial Action Plan",null,"Per Plan",0,null,null,null,null,null,null,null,null,null,null,null,null,null,null,null,null,null,null,null,null,null,null,false]
["19-12.","Level 2 Remedial Action Plan",null,"Per Plan",0,null,null,null,null,null,null,null,null,null,null,null,null,null,null,null,null,null,null,null,null,null,null,false]
["19-13.","Level 1 Limited Scope Remedial Action Plan or RAP Modification Plan",null,"Per Plan",0,null,null,null,null,null,null,null,null,null,null,null,null,null,null,null,null,null,null,null,null,null,null,false]
["19-14.","Level 2 Limited Scope Remedial Action Plan or RAP Modification Plan",null,"Per Plan",0,null,null,null,null,null,null,null,null,null,null,null,null,null,null,null,null,null,null,null,null,null,null,false]
["19-15.","Level 3 Limited Scope Remedial Action Plan or RAP Modification Plan",null,"Per Plan",0,null,null,null,null,null,null,null,null,null,null,null,null,null,null,null,null,null,null,null,null,null,null,false]
["19-16.","Level 4 Limited Scope Remedial Action Plan or RAP Modification Plan",null,"Per Plan",0,null,null,null,null,null,null,null,null,null,null,null,null,null,null,null,null,null,null,null,null,null,null,false]
["19-17.","Construction Drawings and Specs Report",null,"Per Report",0,null,null,null,null,null,null,null,null,null,null,null,null,null,null,null,null,null,null,null,null,null,null,false]
["19-18.","As-Built Drawings (P.E. Sealed red lined modifications)",null,"Per Drawings",0,null,null,null,null,null,null,null,null,null,null,null,null,null,null,null,null,null,null,null,null,null,null,false]
["19-19.","Remedial Action Startup Report ",null,"Per Report",0,null,null,null,null,null,null,null,null,null,null,null,null,null,null,null,null,null,null,null,null,null,null,false]
["19-20.","Letter/NPDES Report",null,"Per Report",0,null,null,null,null,null,null,null,null,null,null,null,null,null,null,null,null,null,null,null,null,null,null,false]
["19-21.","Operation & Maintenance Report, Quarterly or Non-Annual ",null,"Per Report",0,null,null,null,null,null,null,null,null,null,null,null,null,null,null,null,null,null,null,null,null,null,null,false]
["19-22.","Operation & Maintenance Annual Report ",null,"Per Report",0,null,null,null,null,null,null,null,null,null,null,null,null,null,null,null,null,null,null,null,null,null,null,false]
["19-23.","Remedial Action General Report",null,"Per Report",0,null,null,null,null,null,null,null,null,null,null,null,null,null,null,null,null,null,null,null,null,null,null,false]
["19-24.","Remedial Action Interim Report",null,"Per Report",0,null,null,null,null,null,null,null,null,null,null,null,null,null,null,null,null,null,null,null,null,null,null,false]
["19-25.","Free Product Recovery Report ",null,"Per Report",0,null,null,null,null,null,null,null,null,null,null,null,null,null,null,null,null,null,null,null,null,null,null,false]
["19-26.","Well Abandonment/Site Restoration Report ",null,"Per Report",0,null,null,null,null,null,null,null,null,null,null,null,null,null,null,null,null,null,null,null,null,null,null,false]
["19-27.","Interim Assessment Report",null,"Per Report",{"$f":"SUM(F417:O417)","v":0},null,null,null,null,null,null,null,null,null,null,null,null,null,null,null,null,null,null,null,null,null,null,false]
["20.","PERSONNEL (Excluding Professional Engineer and Professional Geologist)",null,null,null,null,null,null,null,null,null,null,null,null,null,null,null,null,null,null,null,null,null,null,null,null,null,{"$f":"IF(COUNTIF(AB419:AB429,TRUE)>0,TRUE,FALSE)","v":false}]
["20-1.","Program Manager (Key)",null,"Per Hour",0,null,null,null,null,null,null,null,null,null,null,null,null,null,null,null,null,null,null,null,null,null,null,{"$f":"IF((SUMPRODUCT((F419:Z419<>\"\")+0))>0,TRUE,FALSE)","v":false}]
["20-2.","Project Manager (Key)",null,"Per Hour",0,null,null,null,null,null,null,null,null,null,null,null,null,null,null,null,null,null,null,null,null,null,null,false]
["20-3.","Engineer (Key)",null,"Per Hour",0,null,null,null,null,null,null,null,null,null,null,null,null,null,null,null,null,null,null,null,null,null,null,false]
["20-4.","Geologist/Geoscientist (Key)",null,"Per Hour",0,null,null,null,null,null,null,null,null,null,null,null,null,null,null,null,null,null,null,null,null,null,null,false]
["20-5.","Hydrogeologist/Modeler (Key)",null,"Per Hour",0,null,null,null,null,null,null,null,null,null,null,null,null,null,null,null,null,null,null,null,null,null,null,false]
["20-6.","Scientist/Technical Specialist (Key)",null,"Per Hour",0,null,null,null,null,null,null,null,null,null,null,null,null,null,null,null,null,null,null,null,null,null,null,false]
["20-7.","Assistant Scientist/Technical Specialist",null,"Per Hour",0,null,null,null,null,null,null,null,null,null,null,null,null,null,null,null,null,null,null,null,null,null,null,false]
["20-8.","Field Technician (Key)",null,"Per Hour",0,null,null,null,null,null,null,null,null,null,null,null,null,null,null,null,null,null,null,null,null,null,null,false]
["20-9.","Draftsperson",null,"Per Hour",0,null,null,null,null,null,null,null,null,null,null,null,null,null,null,null,null,null,null,null,null,null,null,false]
["20-10.","Administrative ",null,"Per Hour",0,null,null,null,null,null,null,null,null,null,null,null,null,null,null,null,null,null,null,null,null,null,null,false]
["20-11.","Laborers and Security Guards",null,"Per Hour",0,null,null,null,null,null,null,null,null,null,null,null,null,null,null,null,null,null,null,null,null,null,null,false]
["21.","PROFESSIONAL ENGINEERING AND PROFESSIONAL GEOLOGY SERVICES                                                                   ",null,null,null,null,null,null,null,null,null,null,null,null,null,null,null,null,null,null,null,null,null,null,null,null,null,{"$f":"IF(COUNTIF(AB431:AB469,TRUE)>0,TRUE,FALSE)","v":false}]
["21-1.","Professional Engineer (Key)",null,"Per Hour",0,null,null,null,null,null,null,null,null,null,null,null,null,null,null,null,null,null,null,null,null,null,null,{"$f":"IF((SUMPRODUCT((F431:Z431<>\"\")+0))>0,TRUE,FALSE)","v":false}]
["21-2.","Professional Geologist (Key)",null,"Per Hour",0,null,null,null,null,null,null,null,null,null,null,null,null,null,null,null,null,null,null,null,null,null,null,false]
["21-3.","P.G. Field Oversight of Drilling and Boring and Soil-Boring Logging (Use hourly rate on site specific basis)",null,"Per Hour",0,null,null,null,null,null,null,null,null,null,null,null,null,null,null,null,null,null,null,null,null,null,null,false]
["21-4.","P.G. Field Oversight of Well Installation (Use hourly rate on site specific basis)",null,"Per Hour",0,null,null,null,null,null,null,null,null,null,null,null,null,null,null,null,null,null,null,null,null,null,null,false]
["21-5.","P.E. Project Oversight for Remediation Technology Pilot Testing ",null,"Per Test",0,null,null,null,null,null,null,null,null,null,null,null,null,null,null,null,null,null,null,null,null,null,null,false]
["21-6.a.","P.E. Project Oversight for Remediation System Integration and Startup - Small System",null,"Per System ",0,null,null,null,null,null,null,null,null,null,null,null,null,null,null,null,null,null,null,null,null,null,null,false]
["21-6.b.","P.E. Project Oversight for Remediation System Integration and Startup - Medium System",null,"Per System ",0,null,null,null,null,null,null,null,null,null,null,null,null,null,null,null,null,null,null,null,null,null,null,false]
["21-6.c.","P.E. Project Oversight for Remediation System Integration and Startup - Large System",null,"Per System ",0,null,null,null,null,null,null,null,null,null,null,null,null,null,null,null,null,null,null,null,null,null,null,false]
["21-6.d.","P.E. Project Oversight for Remediation System Integration and Startup - Extra Large System",null,"Per System ",0,null,null,null,null,null,null,null,null,null,null,null,null,null,null,null,null,null,null,null,null,null,null,false]
["21-7.a.","P.E. Project Oversight for Short Term or Episodic Remediation System Operation - Daily Basis",null,"Per Day",0,null,null,null,null,null,null,null,null,null,null,null,null,null,null,null,null,null,null,null,null,null,null,false]
["21-7.b.","P.E. Project Oversight for Short Term or Episodic Remediation System Operation - Weekly Basis",null,"Per Week",0,null,null,null,null,null,null,null,null,null,null,null,null,null,null,null,null,null,null,null,null,null,null,false]
["21-8.","P.E. Project Oversight for Remediation System Operation and Maintenance",null,"Per Month",0,null,null,null,null,null,null,null,null,null,null,null,null,null,null,null,null,null,null,null,null,null,null,false]
["21-9.","P.E. Review and Certification of Sufficiency of Engineering Controls (other than permanent, impermeable surface or top two feet of clean fill), with Monitoring and Maintenance Recommendations Required for a Conditional NFA",null,"Per Review and Certification",0,null,null,null,null,null,null,null,null,null,null,null,null,null,null,null,null,null,null,null,null,null,null,false]
["21-10.","P.G. Review and Certification of Sufficiency of Engineering Controls Limited to Permanent, Impermeable Surface or Top Two Feet of Clean Fill with Monitoring and Maintenance Recommendations Required for a Conditional NFA",null,"Per Review and Certification",0,null,null,null,null,null,null,null,null,null,null,null,null,null,null,null,null,null,null,null,null,null,null,false]
["21-11.","P.E. Design and Certification of Plans and Project Oversight of Installation for Engineering Controls (other than permanent, impermeable surface or top two feet of clean fill) required for a conditional NFA",null,"Per Engineering Controls Installation",0,null,null,null,null,null,null,null,null,null,null,null,null,null,null,null,null,null,null,null,null,null,null,false]
["21-12.","P.G. Review, Evaluation and Certification of Plans and Project Oversight for Installation of Engineering Controls Limited to Permanent, Impermeable Surface or Top Two Feet of Clean Fill Required for a Conditional NFA",null,"Per Engineering Controls Installation",0,null,null,null,null,null,null,null,null,null,null,null,null,null,null,null,null,null,null,null,null,null,null,false]
["21-13.","P.G. or P.E. Review, Evaluation and Certification of a Soil Source Removal Report That Includes a Recommendation for NFA",null,"Per Report",0,null,null,null,null,null,null,null,null,null,null,null,null,null,null,null,null,null,null,null,null,null,null,false]
["21-15.","P.G. or Qualified P.E. Review, Evaluation and Certification of a General Site Assessment Report",null,"Per Report",0,null,null,null,null,null,null,null,null,null,null,null,null,null,null,null,null,null,null,null,null,null,null,false]
["21-16.","P.G. or Qualified P.E. Review, Evaluation and Certification of a Supplemental Site Assessment Report",null,"Per Report",0,null,null,null,null,null,null,null,null,null,null,null,null,null,null,null,null,null,null,null,null,null,null,false]
["21-17.","P.G. or P.E. Review, Evaluation and Certification of a Receptor and Exposure Pathway Report",null,"Per Report",0,null,null,null,null,null,null,null,null,null,null,null,null,null,null,null,null,null,null,null,null,null,null,false]
["21-18.","P.E. Review, Evaluation and Certification of a Level 2 Natural Attenuation Monitoring Plan",null,"Per Plan",0,null,null,null,null,null,null,null,null,null,null,null,null,null,null,null,null,null,null,null,null,null,null,false]
["21-19.","P.E. Review, Evaluation and Certification of a Non-Annual Natural Attenuation or Post RA Monitoring Report That Includes a Recommendation for NFA or a Recommendation to Modify the Approved Monitoring Plan",null,"Per Report",{"$f":"SUM(F452:O452)","v":0},null,null,null,null,null,null,null,null,null,null,null,null,null,null,null,null,null,null,null,null,null,null,false]
["21-20.","P.G or P.E. Review, Evaluation and Certification of an Annual Natural Attenuation Monitoring Report",null,"Per Report",0,null,null,null,null,null,null,null,null,null,null,null,null,null,null,null,null,null,null,null,null,null,null,false]
["21-21.","P.E. Review, Evaluation and Certification of a Pilot Test Plan",null,"Per Plan",0,null,null,null,null,null,null,null,null,null,null,null,null,null,null,null,null,null,null,null,null,null,null,false]
["21-22.","P.E. Review, Evaluation and Certification of a Pilot Test Report",null,"Per Report",0,null,null,null,null,null,null,null,null,null,null,null,null,null,null,null,null,null,null,null,null,null,null,false]
["21-23.","P.E. Review, Evaluation and Certification of a Level 1 Remedial Action Plan",null,"Per Plan",0,null,null,null,null,null,null,null,null,null,null,null,null,null,null,null,null,null,null,null,null,null,null,false]
["21-24.","P.E. Review, Evaluation and Certification of a Level 2 Remedial Action Plan",null,"Per Plan",0,null,null,null,null,null,null,null,null,null,null,null,null,null,null,null,null,null,null,null,null,null,null,false]
["21-25.","P.E. Review, Evaluation and Certification of a Level 1 Limited Scope Remedial Action Plan or RAP Modification Plan",null,"Per Plan",0,null,null,null,null,null,null,null,null,null,null,null,null,null,null,null,null,null,null,null,null,null,null,false]
["21-26.","P.E. Review, Evaluation and Certification of a Level 2 Limited Scope Remedial Action Plan or RAP Modification Plan",null,"Per Plan",0,null,null,null,null,null,null,null,null,null,null,null,null,null,null,null,null,null,null,null,null,null,null,false]
["21-27.","P.E. Review, Evaluation and Certification of a Level 3 Limited Scope Remedial Action Plan or RAP Modification Plan",null,"Per Plan",0,null,null,null,null,null,null,null,null,null,null,null,null,null,null,null,null,null,null,null,null,null,null,false]
["21-28.","P.E. Review, Evaluation and Certification of a Level 4 Limited Scope Remedial Action Plan or RAP Modification Plan",null,"Per Plan",0,null,null,null,null,null,null,null,null,null,null,null,null,null,null,null,null,null,null,null,null,null,null,false]
["21-29.","P.E. Review, Evaluation and Certification of As-Built Drawings (P.E. sealed red lined modifications)",null,"Per Set of Drawings",0,null,null,null,null,null,null,null,null,null,null,null,null,null,null,null,null,null,null,null,null,null,null,false]
["21-30.","P.E. Review, Evaluation and Certification of a Remedial Action Startup Report That Includes a Recommendation for System Modification or Significant Change in the Course of Action",null,"Per Report",0,null,null,null,null,null,null,null,null,null,null,null,null,null,null,null,null,null,null,null,null,null,null,false]
["21-31.","P.E. Review, Evaluation and Certification of a Non-Annual Operation and Maintenance Report That Includes Significant Proposed Changes to the Approved RAP",null,"Per Report",0,null,null,null,null,null,null,null,null,null,null,null,null,null,null,null,null,null,null,null,null,null,null,false]
["21-32.","P.E. Review, Evaluation and Certification of an Annual Operation and Maintenance Report",null,"Per Report",0,null,null,null,null,null,null,null,null,null,null,null,null,null,null,null,null,null,null,null,null,null,null,false]
["21-33.","P.G or P.E. Review, Evaluation and Certification of a Remedial Action General Report",null,"Per Report",0,null,null,null,null,null,null,null,null,null,null,null,null,null,null,null,null,null,null,null,null,null,null,false]
["21-34.","P.G or P.E. Review, Evaluation and Certification of an Interim Remedial Action Report That Includes a Recommendation for System Modification or Significant Change in the Course of Action",null,"Per Report",0,null,null,null,null,null,null,null,null,null,null,null,null,null,null,null,null,null,null,null,null,null,null,false]
["21-35.","P.E. Review, Evaluation, and Certification of Construction Drawings",null,"Per Set of Drawings",{"$f":"SUM(F468:O468)","v":0},null,null,null,null,null,null,null,null,null,null,null,null,null,null,null,null,null,null,null,null,null,null,false]
["21-36.","P.E. Review, Evaluation, and Certification of Annual PARM Report",null,"Per Report",{"$f":"SUM(F469:O469)","v":0},null,null,null,null,null,null,null,null,null,null,null,null,null,null,null,null,null,null,null,null,null,null,false]
["22.","MISCELLANEOUS ITEMS",null,null,null,null,null,null,null,null,null,null,null,null,null,null,null,null,null,null,null,null,null,null,null,null,null,{"$f":"IF(COUNTIF(AB471:AB500,TRUE)>0,TRUE,FALSE)","v":false}]
["22-1.",null,null,"Reimbursable*",{"$f":"SUM(F471:O471)","v":0},null,null,null,null,null,null,null,null,null,null,null,null,null,null,null,null,null,null,null,null,null,null,{"$f":"IF((SUMPRODUCT((F471:Z471<>\"\")+0))>0,TRUE,FALSE)","v":false}]
["22-2.",null,null,"Reimbursable*",0,null,null,null,null,null,null,null,null,null,null,null,null,null,null,null,null,null,null,null,null,null,null,false]
["22-3.",null,null,"Reimbursable*",0,null,null,null,null,null,null,null,null,null,null,null,null,null,null,null,null,null,null,null,null,null,null,false]
["22-4.",null,null,"Reimbursable*",0,null,null,null,null,null,null,null,null,null,null,null,null,null,null,null,null,null,null,null,null,null,null,false]
["22-5.",null,null,"Reimbursable*",0,null,null,null,null,null,null,null,null,null,null,null,null,null,null,null,null,null,null,null,null,null,null,false]
["22-6.",null,null,"Reimbursable*",0,null,null,null,null,null,null,null,null,null,null,null,null,null,null,null,null,null,null,null,null,null,null,false]
["22-7.",null,null,"Reimbursable*",0,null,null,null,null,null,null,null,null,null,null,null,null,null,null,null,null,null,null,null,null,null,null,false]
["22-8.",null,null,"Reimbursable*",0,null,null,null,null,null,null,null,null,null,null,null,null,null,null,null,null,null,null,null,null,null,null,false]
["22-9.",null,null,"Reimbursable*",0,null,null,null,null,null,null,null,null,null,null,null,null,null,null,null,null,null,null,null,null,null,null,false]
["22-10.",null,null,"Reimbursable*",0,null,null,null,null,null,null,null,null,null,null,null,null,null,null,null,null,null,null,null,null,null,null,false]
["22-11.",null,null,"Reimbursable*",0,null,null,null,null,null,null,null,null,null,null,null,null,null,null,null,null,null,null,null,null,null,null,false]
["22-12.",null,null,"Reimbursable*",0,null,null,null,null,null,null,null,null,null,null,null,null,null,null,null,null,null,null,null,null,null,null,false]
["22-13.",null,null,"Reimbursable*",0,null,null,null,null,null,null,null,null,null,null,null,null,null,null,null,null,null,null,null,null,null,null,false]
["22-14.",null,null,"Reimbursable*",0,null,null,null,null,null,null,null,null,null,null,null,null,null,null,null,null,null,null,null,null,null,null,false]
["22-15.",null,null,"Reimbursable*",{"$f":"SUM(F485:O485)","v":0},null,null,null,null,null,null,null,null,null,null,null,null,null,null,null,null,null,null,null,null,null,null,false]
["22-16.",null,null,"Reimbursable*",0,null,null,null,null,null,null,null,null,null,null,null,null,null,null,null,null,null,null,null,null,null,null,false]
["22-17.",null,null,"Reimbursable*",0,null,null,null,null,null,null,null,null,null,null,null,null,null,null,null,null,null,null,null,null,null,null,false]
["22-18.",null,null,"Reimbursable*",0,null,null,null,null,null,null,null,null,null,null,null,null,null,null,null,null,null,null,null,null,null,null,false]
["22-19.",null,null,"Reimbursable*",0,null,null,null,null,null,null,null,null,null,null,null,null,null,null,null,null,null,null,null,null,null,null,false]
["22-20.",null,null,"Reimbursable*",0,null,null,null,null,null,null,null,null,null,null,null,null,null,null,null,null,null,null,null,null,null,null,false]
["22-21.",null,null,"Reimbursable*",0,null,null,null,null,null,null,null,null,null,null,null,null,null,null,null,null,null,null,null,null,null,null,false]
["22-22.",null,null,"Reimbursable*",0,null,null,null,null,null,null,null,null,null,null,null,null,null,null,null,null,null,null,null,null,null,null,false]
["22-23.",null,null,"Reimbursable*",0,null,null,null,null,null,null,null,null,null,null,null,null,null,null,null,null,null,null,null,null,null,null,false]
["22-24.",null,null,"Reimbursable*",0,null,null,null,null,null,null,null,null,null,null,null,null,null,null,null,null,null,null,null,null,null,null,false]
["22-25.",null,null,"Reimbursable*",0,null,null,null,null,null,null,null,null,null,null,null,null,null,null,null,null,null,null,null,null,null,null,false]
["22-26.",null,null,"Reimbursable*",0,null,null,null,null,null,null,null,null,null,null,null,null,null,null,null,null,null,null,null,null,null,null,false]
["22-27.",null,null,"Reimbursable*",0,null,null,null,null,null,null,null,null,null,null,null,null,null,null,null,null,null,null,null,null,null,null,false]
["22-28.",null,null,"Reimbursable*",0,null,null,null,null,null,null,null,null,null,null,null,null,null,null,null,null,null,null,null,null,null,null,false]
["22-29.",null,null,"Reimbursable*",0,null,null,null,null,null,null,null,null,null,null,null,null,null,null,null,null,null,null,null,null,null,null,false]
["22-30.",null,null,"Reimbursable*",0,null,null,null,null,null,null,null,null,null,null,null,null,null,null,null,null,null,null,null,null,null,null,false]
["23.","CONTINGENT FUNDING",null,null,null,null,null,null,null,null,null,null,null,null,null,null,null,null,null,null,null,null,null,null,null,null,null,{"$f":"AB502","v":false}]
["23-1.","Contingent Funding - Allowance only to be used as offset for field change orders",null,"NOT BILLABLE",0,null,null,null,null,null,null,null,null,null,null,null,null,null,null,null,null,null,null,null,null,null,null,{"$f":"IF((SUMPRODUCT((F502:Z502<>\"\")+0))>0,TRUE,FALSE)","v":false}]
[null,null,null,null,null,null,null,null,null,null,null,null,null,null,null,null,null,null,null,null,null,null,null,null,null,null,null,true]
[null,null,null,null,null,null,null,null,null,null,null,null,null,null,null,null,null,null,null,null,null,null,null,null,null,null,null,{"$f":"IF((SUMPRODUCT((Q504:AA504<>\"\")+0))>0,TRUE,FALSE)","v":false}]
[null,null,null,null,null,null,null,null,null,null,null,null,null,null,null,null,null,null,null,null,null,null,null,null,null,null,null,{"$f":"IF((SUMPRODUCT((Q505:Z505<>\"\")+0))>0,TRUE,FALSE)","v":false}]
[null,null,null,null,null,null,null,null,null,null,null,null,null,null,null,null,null,null,null,null,null,null,null,null,null,null,null,{"$f":"IF((SUMPRODUCT((Q506:Z506<>\"\")+0))>0,TRUE,FALSE)","v":false}]
[null,null,null,null,null,null,null,null,null,null,null,null,null,null,null,null,null,null,null,null,null,null,null,null,null,null,null,{"$f":"IF((SUMPRODUCT((Q507:Z507<>\"\")+0))>0,TRUE,FALSE)","v":false}]
[null,null,null,null,null,null,null,null,null,null,null,null,null,null,null,null,null,null,null,null,null,null,null,null,null,null,null,{"$f":"IF((SUMPRODUCT((Q508:Z508<>\"\")+0))>0,TRUE,FALSE)","v":false}]
[null,null,null,null,null,null,null,null,null,null,null,null,null,null,null,null,null,null,null,null,null,null,null,null,null,null,null,{"$f":"IF((SUMPRODUCT((Q509:Z509<>\"\")+0))>0,TRUE,FALSE)","v":false}]
[null,null,null,null,null,null,null,null,null,null,null,null,null,null,null,null,null,null,null,null,null,null,null,null,null,null,null,true]